Workbook

Sheet 1st Cert
A1: CHARTER SCHOOL
A2: INTERIM FINANCIAL REPORT - ALTERNATIVE FORM
A3: First Interim Report Certification
A6: Charter School Name: | J6: Magnolia Science Academy
I7: (continued) | J7: Santa Ana
A8: CDS #: | J8: 30-76893-0130765
A9: Charter Approving Entity: | J9: State Board of Education
A10: County: | J10: Orange
A11: Charter #: | J11: 1686
A12: Fiscal Year: | J12: =IF('1st Detail'!G12="","",'1st Detail'!G12) -> 2016/17
E15: To the entity that approved the charter school:
A16: ( | B16: x | C16: ) | E16: =IF('1st Detail'!$G$12="","",'1st Detail'!$G$12) -> 2016/17 | F16: CHARTER SCHOOL FIRST INTERIM FINANCIAL REPORT -- ALTERNATIVE FORM: This report
E17: has been approved, and is hereby filed by the charter school pursuant to Education Code Section 47604.33.
E18: Signed: | L18: Date:
F19: Charter School Official
F20: (Original signature required)
E21: Print Name: | F21: Caprice Young | L21: Title: | M21: CEO
E24: To the County Superintendent of Schools:
A25: ( | B25: x | C25: ) | E25: =IF('1st Detail'!$G$12="","",'1st Detail'!$G$12) -> 2016/17 | F25: =F16 -> CHARTER SCHOOL FIRST INTERIM FINANCIAL REPORT -- ALTERNATIVE FORM: This report
E26: is hereby filed with the County Superintendent pursuant to Education Code Section 47604.33.
E27: Signed: | L27: Date:
F28: Authorized Representative of Charter Approving Entity
F29: (Original signature required)
E30: Print Name: | L30: Title:
E33: For additional information on the First Interim Report, please contact:
E35: For Approving Entity: | L35: For Charter School:
E36: Kylie Kwok | L36: Brock Atar
E37: Name | L37: Name
E38: Educational Fiscal Services Consultant | L38: Senior Financial Analyst
E39: Title | L39: Title
E40: (916) 319-0498 | L40: (213) 628-3634
E41: Phone | L41: Phone
E42: kkwok@cde.ca.gov | L42: batar@magnoliapublicschools.org
E43: E-mail | L43: E-mail
E46: This report has been verified for mathematical accuracy by the County Superintendent of Schools,
E47: pursuant to Education Code Section 47604.33.
E50: District Advisor | L50: Date

Sheet 1st Detail
A1: CHARTER SCHOOL
A2: INTERIM FINANCIAL REPORT - ALTERNATIVE FORM
A3: First Interim Report - Detail
F6: Charter School Name: | G6: Magnolia Science Academy
F7: (continued) | G7: Santa Ana
F8: CDS #: | G8: 30-76893-0130765
F9: Charter Approving Entity: | G9: State Board of Education
F10: County: | G10: Orange
F11: Charter #: | G11: 1686
F12: Fiscal Year: | G12: 2016/17
A14: This charter school uses the following basis of accounting:
B15: X | C15: Accrual Basis (Applicable Capital Assets / Interest on Long-Term Debt / Long-Term Liabilities objects are 6900, 7438, 9400-9499, and 9660-9669)
C17: Modified Accrual Basis (Applicable Capital Outlay / Debt Service objects are 6100-6170, 6200-6500, 7438, and 7439)
F19: Adopted Budget - July 1 | I19: Actuals thru 10/31 | L19: 1st Interim Budget
D20: Description | E20: Object Code | F20: Unrestricted | G20: Restricted | H20: Total | I20: Unrestricted | J20: Restricted | K20: Total | L20: Unrestricted | M20: Restricted | N20: Total
A21: A. | B21: REVENUES
B22: 1. | C22: LCFF/Revenue Limit Sources
D23: State Aid - Current Year | E23: 8011 | F23: 3517160.056 | G23: 0 | H23: =SUM(F23:G23) -> 3517160.056 | I23: 430852.6 | K23: =SUM(I23:J23) -> 430852.6 | L23: 4208989.284 | N23: =SUM(L23:M23) -> 4208989.284
D24: Education Protection Account State Aid - Current Year | E24: 8012 | F24: 102290 | G24: 0 | H24: =SUM(F24:G24) -> 102290 | I24: 7167 | K24: =SUM(I24:J24) -> 7167 | L24: 121204 | N24: =SUM(L24:M24) -> 121204
D25: Charter Schools Gen. Purpose Entitlement - State Aid | E25: 8015 | F25: 0 | G25: 0 | H25: 0 | K25: 0 | N25: 0
D26: State Aid - Prior Years | E26: 8019 | F26: 0 | G26: 0 | H26: 0 | I26: 0 | K26: 0 | L26: 0 | N26: 0
D27: Tax Relief Subventions | E27: 8020-8039 | F27: 0 | G27: 0 | H27: 0 | K27: 0 | N27: 0
D28: County and District Taxes | E28: 8040-8079 | F28: 0 | G28: 0 | H28: 0 | K28: 0 | N28: 0
D29: Miscellaneous Funds | E29: 8080-8089 | F29: 0 | G29: 0 | H29: 0 | K29: 0 | N29: 0
D30: LCFF/Revenue Limit Transfers:
D31: PERS Reduction Transfer | E31: 8092 | F31: 0 | G31: 0 | H31: =SUM(F31:G31) -> 0 | K31: =SUM(I31:J31) -> 0 | N31: =SUM(L31:M31) -> 0
D32: Charter Schools Funding in lieu of Property Taxes | E32: 8096 | F32: 975861.9435 | G32: 0 | H32: =SUM(F32:G32) -> 975861.9435 | I32: 66886 | K32: =SUM(I32:J32) -> 66886 | L32: 1147080.716 | N32: =SUM(L32:M32) -> 1147080.716
D33: Other LCFF/Revenue Limit Transfers | E33: 8091, 8097 | F33: 0 | G33: 0 | H33: =SUM(F33:G33) -> 0 | K33: =SUM(I33:J33) -> 0 | N33: =SUM(L33:M33) -> 0
D34: Total, LCFF/Revenue Limit Sources | F34: =SUM((F23:F29),(F31:F33)) -> 4595312 | G34: 0 | H34: 4595312 | I34: 504905.6 | J34: 0 | K34: 504905.6 | L34: 5477274 | M34: 0 | N34: 5477274
B36: 2. | C36: Federal Revenues
D37: No Child Left Behind | E37: 8290 | F37: 0 | G37: 0 | H37: =SUM(F37:G37) -> 0 | J37: 8155 | K37: =SUM(I37:J37) -> 8155 | L37: 0 | M37: 136851.29 | N37: =SUM(L37:M37) -> 136851.29
D38: Special Education - Federal | E38: 8181, 8182 | F38: 0 | G38: 17061.28655 | H38: =SUM(F38:G38) -> 17061.28655 | J38: 3590.4 | K38: =SUM(I38:J38) -> 3590.4 | L38: 0 | M38: 18000 | N38: =SUM(L38:M38) -> 18000
D39: Child Nutrition - Federal | E39: 8220 | F39: 0 | G39: 183549.6 | H39: =SUM(F39:G39) -> 183549.6 | J39: 0 | K39: =SUM(I39:J39) -> 0 | L39: 0 | M39: 227287.0999 | N39: =SUM(L39:M39) -> 227287.0999
D40: Donated Food Commodities | E40: 8221 | F40: 0
D41: Other Federal Revenues | E41: 8110, 8260-8299 | G41: 193916.1905 | H41: =SUM(F41:G41) -> 193916.1905 | J41: 162 | K41: =SUM(I41:J41) -> 162 | L41: 54562 | M41: 261354.76 | N41: =SUM(L41:M41) -> 315916.76
D42: Total, Federal Revenues | F42: =SUM(F37:F41) -> 0 | G42: =SUM(G37:G41) -> 394527.077 | H42: =SUM(H37:H41) -> 394527.077 | I42: =SUM(I37:I41) -> 0 | J42: =SUM(J37:J41) -> 11907.4 | K42: =SUM(K37:K41) -> 11907.4 | L42: =SUM(L37:L41) -> 54562 | M42: =SUM(M37:M41) -> 643493.1499 | N42: 698055.1499
B44: 3. | C44: Other State Revenues
D45: Charter Schools Categorical Block Grant (8480 N/A thru 14/15-SBX3-4) | E45: N/A thru 14/15 | H45: =SUM(F45:G45) -> 0 | K45: =SUM(I45:J45) -> 0 | N45: =SUM(L45:M45) -> 0
D46: Special Education - State | E46: StateRevSE | F46: 0 | G46: 245368.1375 | H46: =SUM(F46:G46) -> 245368.1375 | J46: 19851 | K46: =SUM(I46:J46) -> 19851 | L46: 0 | M46: 304828.06 | N46: =SUM(L46:M46) -> 304828.06
D47: All Other State Revenues | E47: StateRevAO | F47: 93154.2485 | G47: 7395.771429 | H47: =SUM(F47:G47) -> 100550.0199 | I47: 4877.65 | J47: 0 | K47: =SUM(I47:J47) -> 4877.65 | L47: 147808.4932 | M47: 100945.022 | N47: =SUM(L47:M47) -> 248753.5152
D48: Total, Other State Revenues | F48: =SUM(F45:F47) -> 93154.2485 | G48: =SUM(G45:G47) -> 252763.9089 | H48: =SUM(H45:H47) -> 345918.1574 | I48: =SUM(I45:I47) -> 4877.65 | J48: 19851 | K48: 24728.65 | L48: 147808.4932 | M48: 405773.082 | N48: 553581.5752
B50: 4. | C50: Other Local Revenues
D51: All Other Local Revenues | E51: LocalRevAO | F51: 22604.503 | G51: 15900 | H51: =SUM(F51:G51) -> 38504.503 | I51: 18335.52 | J51: 2514 | K51: =SUM(I51:J51) -> 20849.52 | L51: 39235.103 | M51: 0 | N51: =SUM(L51:M51) -> 39235.103
D52: Total, Local Revenues | F52: =SUM(F51:F51) -> 22604.503 | G52: =SUM(G51:G51) -> 15900 | H52: =SUM(H51:H51) -> 38504.503 | I52: 18335.52 | J52: 2514 | K52: 20849.52 | L52: 39235.103 | M52: 0 | N52: 39235.103
B54: 5. | C54: TOTAL REVENUES | F54: =SUM(F34,F42,F48,F52) -> 4711070.751 | G54: 663190.986 | H54: 5374261.737 | I54: 528118.77 | J54: 34272.4 | K54: 562391.17 | L54: 5718879.596 | M54: 1049266.232 | N54: 6768145.828
A56: B. | B56: EXPENDITURES
B57: 1. | C57: Certificated Salaries
D58: Certificated Teachers' Salaries | E58: 1100 | F58: 1697370.151 | G58: 89729.84882 | H58: =SUM(F58:G58) -> 1787100 | I58: 474883.56 | J58: 67386.6 | K58: =SUM(I58:J58) -> 542270.16 | L58: 1781679.326 | M58: 263977.4345 | N58: =SUM(L58:M58) -> 2045656.76
D59: Certificated Pupil Support Salaries | E59: 1200 | F59: 0 | G59: 0 | H59: =SUM(F59:G59) -> 0 | I59: 0 | J59: 0 | K59: =SUM(I59:J59) -> 0 | L59: 0 | M59: 0 | N59: =SUM(L59:M59) -> 0
D60: Certificated Supervisors' and Administrators' Salaries | E60: 1300 | F60: 360450 | G60: 0 | H60: =SUM(F60:G60) -> 360450 | I60: 116857.09 | J60: 19910 | K60: =SUM(I60:J60) -> 136767.09 | L60: 360063.1564 | M60: 135605.9236 | N60: =SUM(L60:M60) -> 495669.08
D61: Other Certificated Salaries | E61: 1900 | F61: 0 | G61: 0 | H61: =SUM(F61:G61) -> 0 | I61: 0 | J61: 0 | K61: =SUM(I61:J61) -> 0 | L61: 0 | M61: 0 | N61: =SUM(L61:M61) -> 0
D62: Total, Certificated Salaries | F62: =SUM(F58:F61) -> 2057820.151 | G62: =SUM(G58:G61) -> 89729.84882 | H62: =SUM(H58:H61) -> 2147550 | I62: =SUM(I58:I61) -> 591740.65 | J62: 87296.6 | K62: 679037.25 | L62: 2141742.482 | M62: 399583.3581 | N62: 2541325.84
B64: 2. | C64: Non-certificated Salaries
D65: Non-certificated Instructional Aides' Salaries | E65: 2100 | F65: 0 | G65: 0 | H65: =SUM(F65:G65) -> 0 | I65: 0 | J65: 0 | K65: =SUM(I65:J65) -> 0 | L65: 0 | M65: 0 | N65: =SUM(L65:M65) -> 0
D66: Non-certificated Support Salaries | E66: 2200 | F66: 0 | G66: 0 | H66: =SUM(F66:G66) -> 0 | I66: 0 | J66: 0 | K66: =SUM(I66:J66) -> 0 | L66: 0 | M66: 0 | N66: =SUM(L66:M66) -> 0
D67: Non-certificated Supervisors' and Administrators' Sal. | E67: 2300 | F67: 0 | G67: 0 | H67: =SUM(F67:G67) -> 0 | I67: 0 | J67: 0 | K67: =SUM(I67:J67) -> 0 | L67: 0 | M67: 0 | N67: =SUM(L67:M67) -> 0
D68: Clerical and Office Salaries | E68: 2400 | F68: 70000 | G68: 0 | H68: =SUM(F68:G68) -> 70000 | I68: 46046.78 | J68: 0 | K68: =SUM(I68:J68) -> 46046.78 | L68: 380571.07 | M68: 92760 | N68: =SUM(L68:M68) -> 473331.07
D69: Other Non-certificated Salaries | E69: 2900 | F69: 165580 | G69: 0 | H69: =SUM(F69:G69) -> 165580 | I69: 37910.43 | J69: 13317.55 | K69: =SUM(I69:J69) -> 51227.98 | L69: 0 | M69: 0 | N69: =SUM(L69:M69) -> 0
D70: Total, Non-certificated Salaries | F70: =SUM(F65:F69) -> 235580 | G70: =SUM(G65:G69) -> 0 | H70: =SUM(H65:H69) -> 235580 | I70: =SUM(I65:I69) -> 83957.21 | J70: 13317.55 | K70: 97274.76 | L70: 380571.07 | M70: 92760 | N70: 473331.07
B72: 3. | C72: Employee Benefits
D73: STRS | E73: 3101-3102 | F73: 237981.6587 | G73: 11926.3313 | H73: =SUM(F73:G73) -> 249907.99 | I73: 76723.56 | J73: 152.12 | K73: =SUM(I73:J73) -> 76875.68 | L73: 252025.7767 | M73: 49194.2079 | N73: =SUM(L73:M73) -> 301219.9846
D74: PERS | E74: 3201-3202 | F74: 8025.496284 | G74: 402.1937157 | H74: 8427.69 | I74: 4144.79 | J74: 603.7 | K74: 4748.49 | L74: 9413.427362 | M74: 1837.455314 | N74: 11250.88268
D75: OASDI / Medicare / Alternative | E75: 3301-3302 | F75: 56209.33123 | G75: 2816.902405 | H75: 59026.23363 | I75: 21532.29 | J75: 38.95 | K75: 21571.24 | L75: 69209.83039 | M75: 13509.42284 | N75: 82719.25323
D76: Health and Welfare Benefits | E76: 3401-3402 | F76: 316251.2285 | G76: 15848.77149 | H76: 332100 | I76: 84941.58 | J76: 0 | K76: 84941.58 | L76: 286561.8066 | M76: 55935.47324 | N76: 342497.2799
D77: Unemployment Insurance | E77: 3501-3502 | F77: 1134.700076 | G77: 56.86492441 | H77: 1191.565 | I77: -329 | J77: 0 | K77: -329 | L77: 3771.207134 | M77: 736.1213212 | N77: 4507.328455
D78: Workers' Compensation Insurance | E78: 3601-3602 | F78: 22694.00151 | G78: 1137.298488 | H78: 23831.3 | I78: 4283 | J78: 0 | K78: 4283 | L78: 28401.25059 | M78: 5543.786212 | N78: 33945.03681
D79: OPEB, Allocated | E79: 3701-3702 | F79: 0 | G79: 0 | H79: 0 | I79: 0 | J79: 0 | K79: 0 | L79: 0 | M79: 0 | N79: 0
D80: OPEB, Active Employees | E80: 3751-3752 | F80: 0 | G80: 0 | H80: 0 | K80: 0 | N80: 0
D81: PERS Reduction (for revenue limit funded schools) | E81: 3801-3802 | F81: 0 | G81: 0 | H81: 0 | I81: 0 | J81: 0 | K81: 0 | L81: 0 | M81: 0 | N81: 0
D82: Other Employee Benefits | E82: 3901-3902 | F82: 2039.777571 | G82: 102.2224286 | H82: 2142 | I82: 0 | J82: 0 | K82: 0 | L82: 0 | M82: 0 | N82: 0
D83: Total, Employee Benefits | F83: =SUM(F73:F82) -> 644336.1939 | G83: 32290.58475 | H83: 676626.7786 | I83: 191296.22 | J83: 794.77 | K83: 192090.99 | L83: 649383.2989 | M83: 126756.4668 | N83: 776139.7657
B85: 4. | C85: Books and Supplies
D86: Approved Textbooks and Core Curricula Materials | E86: 4100 | F86: 235150 | G86: 0 | H86: =SUM(F86:G86) -> 235150 | I86: 10265.42 | J86: 207889.42 | K86: =SUM(I86:J86) -> 218154.84 | L86: 31614.76 | M86: 208385.24 | N86: =SUM(L86:M86) -> 240000
D87: Books and Other Reference Materials | E87: 4200 | F87: 32334.85714 | G87: 2665.142857 | H87: =SUM(F87:G87) -> 35000 | I87: 1668.7 | J87: 0 | K87: =SUM(I87:J87) -> 1668.7 | L87: 20000 | M87: 0 | N87: =SUM(L87:M87) -> 20000
D88: Materials and Supplies | E88: 4300 | F88: 103884.8276 | G88: 0 | H88: =SUM(F88:G88) -> 103884.8276 | I88: 45493.55 | J88: 2341.72 | K88: =SUM(I88:J88) -> 47835.27 | L88: 110221.278 | M88: 25970.45199 | N88: =SUM(L88:M88) -> 136191.73
D89: Noncapitalized Equipment | E89: 4400 | F89: 54450 | G89: 54400 | H89: =SUM(F89:G89) -> 108850 | I89: 21481.54 | J89: 52944.09 | K89: =SUM(I89:J89) -> 74425.63 | L89: 141798.73 | M89: 52944.09 | N89: =SUM(L89:M89) -> 194742.82
D90: Food | E90: 4700 | F90: 2000 | G90: 206845.3714 | H90: =SUM(F90:G90) -> 208845.3714 | I90: 1588.48 | J90: 50704.6 | K90: =SUM(I90:J90) -> 52293.08 | L90: 5000 | M90: 270190.7772 | N90: =SUM(L90:M90) -> 275190.7772
D91: Total, Books and Supplies | F91: =SUM(F86:F90) -> 427819.6847 | G91: =SUM(G86:G90) -> 263910.5143 | H91: =SUM(H86:H90) -> 691730.199 | I91: =SUM(I86:I90) -> 80497.69 | J91: 313879.83 | K91: 394377.52 | L91: 308634.768 | M91: 557490.5592 | N91: 866125.3272
B93: 5. | C93: Services and Other Operating Expenditures
D94: Subagreements for Services | E94: 5100 | F94: 1005424.196 | G94: 0 | H94: =SUM(F94:G94) -> 1005424.196 | I94: 324063.88 | J94: 0 | K94: =SUM(I94:J94) -> 324063.88 | L94: 1088790.452 | M94: 0 | N94: =SUM(L94:M94) -> 1088790.452
D95: Travel and Conferences | E95: 5200 | F95: 28809.09091 | G95: 0 | H95: =SUM(F95:G95) -> 28809.09091 | I95: 1602.41 | J95: 310 | K95: =SUM(I95:J95) -> 1912.41 | L95: 18809.09091 | M95: 0 | N95: =SUM(L95:M95) -> 18809.09091
D96: Dues and Memberships | E96: 5300 | F96: 6000 | G96: 0 | H96: 6000 | I96: 1820 | J96: 0 | K96: 1820 | L96: 6000 | M96: 0 | N96: 6000
D97: Insurance | E97: 5400 | F97: 32415.12166 | G97: 0 | H97: 32415.12166 | I97: 6654 | J97: 0 | K97: 6654 | L97: 21456 | M97: 0 | N97: 21456
D98: Operations and Housekeeping Services | E98: 5500 | F98: 63500 | G98: 0 | H98: 63500 | I98: 40981.79 | J98: 0 | K98: 40981.79 | L98: 169772.38 | M98: 0 | N98: 169772.38
D99: Rentals, Leases, Repairs, and Noncap. Improvements | E99: 5600 | F99: 50344 | G99: 0 | H99: 50344 | I99: 44650.59 | J99: 0 | K99: 44650.59 | L99: 88839.43 | M99: 0 | N99: 88839.43
D100: Professional/Consulting Services and Operating Expend. | E100: 5800 | F100: 308965.4421 | G100: 267712.0381 | H100: 576677.4802 | I100: 53098.33 | J100: 334 | K100: 53432.33 | L100: 651975.7024 | M100: 20362.29 | N100: 672337.9924
D101: Communications | E101: 5900 | F101: 12598.6956 | G101: 0 | H101: 12598.6956 | I101: 6002.18 | J101: 0 | K101: 6002.18 | L101: 24798.6956 | M101: 0 | N101: 24798.6956
D102: Total, Services and Other Operating Expenditures | F102: =SUM(F94:F101) -> 1508056.547 | G102: =SUM(G94:G101) -> 267712.0381 | H102: 1775768.585 | I102: 478873.18 | J102: 644 | K102: 479517.18 | L102: 2070441.75 | M102: 20362.29 | N102: 2090804.04
B104: 6. | C104: Capital Outlay (Objects 6100-6170, 6200-6500 for modified accrual basis only)
D105: Land and Land Improvements | E105: 6100-6170 | F105: 0 | G105: 0 | H105: =SUM(F105:G105) -> 0 | I105: 0 | J105: 0 | K105: =SUM(I105:J105) -> 0 | N105: =SUM(L105:M105) -> 0
D106: Buildings and Improvements of Buildings | E106: 6200 | F106: 0 | G106: 0 | H106: =SUM(F106:G106) -> 0 | I106: 0 | J106: 0 | K106: =SUM(I106:J106) -> 0 | N106: =SUM(L106:M106) -> 0
D107: Books and Media for New School Libraries or Major
D108: Expansion of School Libraries | E108: 6300 | F108: 0 | G108: 0 | H108: =SUM(F108:G108) -> 0 | I108: 0 | J108: 0 | K108: =SUM(I108:J108) -> 0 | N108: =SUM(L108:M108) -> 0
D109: Equipment | E109: 6400 | F109: 0 | G109: 0 | H109: =SUM(F109:G109) -> 0 | I109: 0 | J109: 0 | K109: =SUM(I109:J109) -> 0 | N109: =SUM(L109:M109) -> 0
D110: Equipment Replacement | E110: 6500 | F110: 0 | G110: 0 | H110: =SUM(F110:G110) -> 0 | I110: 0 | J110: 0 | K110: =SUM(I110:J110) -> 0 | N110: =SUM(L110:M110) -> 0
D111: Depreciation Expense (for accrual basis only) | E111: 6900 | F111: 55373.33333 | G111: 341860.5385 | H111: =SUM(F111:G111) -> 397233.8718 | I111: 132411.32 | J111: 0 | K111: =SUM(I111:J111) -> 132411.32 | L111: 363466.4233 | M111: 0 | N111: =SUM(L111:M111) -> 363466.4233
D112: Total, Capital Outlay | F112: =SUM(F105:F106)+SUM(F108:F111) -> 55373.33333 | G112: =SUM(G105:G106)+SUM(G108:G111) -> 341860.5385 | H112: =SUM(H105:H106)+SUM(H108:H111) -> 397233.8718 | I112: =SUM(I105:I106)+SUM(I108:I111) -> 132411.32 | J112: 0 | K112: 132411.32 | L112: 363466.4233 | M112: 0 | N112: 363466.4233
B114: 7. | C114: Other Outgo
D115: Tuition to Other Schools | E115: 7110-7143 | F115: 0 | G115: 0 | H115: =SUM(F115:G115) -> 0 | K115: =SUM(I115:J115) -> 0 | N115: =SUM(L115:M115) -> 0
D116: Transfers of Pass-through Revenues to Other LEAs | E116: 7211-7213 | F116: 0 | G116: 0 | H116: =SUM(F116:G116) -> 0 | K116: =SUM(I116:J116) -> 0 | N116: =SUM(L116:M116) -> 0
D117: Transfers of Apportionments to Other LEAs - Spec. Ed. | E117: 7221-7223SE | F117: 0 | G117: 0 | H117: =SUM(F117:G117) -> 0 | K117: =SUM(I117:J117) -> 0 | N117: =SUM(L117:M117) -> 0
D118: Transfers of Apportionments to Other LEAs - All Other | E118: 7221-7223AO | F118: 0 | G118: 0 | H118: =SUM(F118:G118) -> 0 | K118: =SUM(I118:J118) -> 0 | N118: =SUM(L118:M118) -> 0
D119: All Other Transfers | E119: 7281-7299 | F119: 0 | G119: 0 | H119: =SUM(F119:G119) -> 0 | I119: 0 | J119: 0 | K119: =SUM(I119:J119) -> 0 | N119: =SUM(L119:M119) -> 0
D120: Debt Service:
D121: Interest | E121: 7438 | F121: 0 | G121: 0 | H121: =SUM(F121:G121) -> 0 | I121: 0 | J121: 0 | K121: =SUM(I121:J121) -> 0 | N121: =SUM(L121:M121) -> 0
D122: Principal (for modified accrual basis only) | E122: 7439 | F122: 0 | G122: 0 | H122: =SUM(F122:G122) -> 0 | I122: 0 | J122: 0 | K122: =SUM(I122:J122) -> 0 | N122: =SUM(L122:M122) -> 0
D123: Total, Other Outgo | F123: =SUM(F115:F119,F121:F122) -> 0 | G123: 0 | H123: 0 | I123: 0 | J123: 0 | K123: 0 | L123: 0 | M123: 0 | N123: 0
B125: 8. | C125: TOTAL EXPENDITURES | F125: =SUM(F62,F70,F83,F91,F102,F112,F123) -> 4928985.91 | G125: 995503.5244 | H125: 5924489.434 | I125: 1558776.27 | J125: 415932.75 | K125: 1974709.02 | L125: =SUM(L62,L70,L83,L91,L102,L112,L123) -> 5914239.793 | M125: 1196952.674 | N125: 7111192.467
A127: C. | B127: EXCESS (DEFICIENCY) OF REVENUES OVER EXPEND.
B128: BEFORE OTHER FINANCING SOURCES AND USES (A5-B8) | F128: =SUM(F54-F125) -> -217915.1582 | G128: -332312.5385 | H128: -550227.6966 | I128: -1030657.5 | J128: -381660.35 | K128: -1412317.85 | L128: -195360.1963 | M128: -147686.4423 | N128: -343046.6386
A130: D. | B130: OTHER FINANCING SOURCES / USES
B131: 1. | C131: Other Sources | E131: 8930-8979 | F131: 0 | G131: 0 | H131: =SUM(F131:G131) -> 0 | K131: =SUM(I131:J131) -> 0 | N131: =SUM(L131:M131) -> 0
B132: 2. | C132: Less: Other Uses | E132: 7630-7699 | F132: 0 | G132: 0 | H132: =SUM(F132:G132) -> 0 | K132: =SUM(I132:J132) -> 0 | N132: =SUM(L132:M132) -> 0
B133: 3. | C133: Contributions Between Unrestricted and Restricted Accounts
C134: (must net to zero) | E134: 8980-8999 | F134: 0 | G134: 0 | H134: =SUM(F134:G134) -> 0 | K134: =SUM(I134:J134) -> 0 | N134: =SUM(L134:M134) -> 0
B136: 4. | C136: TOTAL OTHER FINANCING SOURCES / USES | F136: =SUM(+F131-F132+F134) -> 0 | G136: =SUM(+G131-G132+G134) -> 0 | H136: =SUM(+H131-H132+H134) -> 0 | I136: =SUM(+I131-I132+I134) -> 0 | J136: 0 | K136: 0 | L136: 0 | M136: 0 | N136: 0
A138: E. | B138: NET INCREASE (DECREASE) IN FUND BALANCE (C + D4) | F138: =SUM(F128,F136) -> -217915.1582 | G138: =SUM(G128,G136) -> -332312.5385 | H138: =SUM(H128,H136) -> -550227.6966 | I138: =SUM(I128,I136) -> -1030657.5 | J138: -381660.35 | K138: -1412317.85 | L138: -195360.1963 | M138: -147686.4423 | N138: -343046.6386
A140: F. | B140: FUND BALANCE, RESERVES
B141: 1. | C141: Beginning Fund Balance
C142: a. | D142: As of July 1 | E142: 9791 | F142: 1572747.13 | G142: 6640139.4 | H142: =SUM(F142:G142) -> 8212886.531 | I142: 1092100.01 | J142: 7199001.37 | K142: =SUM(I142:J142) -> 8291101.38 | L142: 1092100.01 | M142: 7199001.37 | N142: =SUM(L142:M142) -> 8291101.38
C143: b. | D143: Adjustments to Beginning Balance | E143: 9793, 9795 | F143: 0 | G143: 0 | H143: =SUM(F143:G143) -> 0 | I143: 1363833.99 | J143: -1356014.37 | K143: =SUM(I143:J143) -> 7819.62 | L143: 1363833.99 | M143: -1356014.37 | N143: =SUM(L143:M143) -> 7819.62
C144: c. | D144: Adjusted Beginning Balance | F144: =SUM(F142:F143) -> 1572747.13 | G144: =SUM(G142:G143) -> 6640139.4 | H144: =SUM(H142:H143) -> 8212886.531 | I144: =SUM(I142:I143) -> 2455934 | J144: 5842987 | K144: 8298921 | L144: 2455934 | M144: 5842987 | N144: 8298921
B145: 2. | C145: Ending Fund Balance, June 30 (E + F.1.c.) | F145: =SUM(F138,F144) -> 1354831.972 | G145: =SUM(G138,G144) -> 6307826.862 | H145: =SUM(H138,H144) -> 7662658.834 | I145: =SUM(I138,I144) -> 1425276.5 | J145: 5461326.65 | K145: 6886603.15 | L145: 2260573.804 | M145: 5695300.558 | N145: 7955874.361
C147: Components of Ending Fund Balance :
C148: a. | D148: Nonspendable
D149: Revolving Cash (equals object 9130) | E149: 9711 | F149: 0 | H149: =SUM(F149:G149) -> 0 | K149: =SUM(I149:J149) -> 0 | N149: =SUM(L149:M149) -> 0
D150: Stores (equals object 9320) | E150: 9712 | F150: 0 | G150: 0 | H150: 0 | K150: 0 | N150: 0
D151: Prepaid Expenditures (equals object 9330) | E151: 9713 | F151: 0 | G151: 0 | H151: 0 | K151: 0 | N151: 0
D152: All Others | E152: 9719 | F152: 0 | G152: 0 | H152: 0 | K152: 0 | N152: 0
C153: b | D153: Restricted | E153: 9740 | G153: 6307826.86 | H153: 6307826.86 | J153: 6817341.02 | K153: 6817341.02 | M153: 7051314.928 | N153: 7051314.928
C154: c. | D154: Committed
D155: Stabilization Arrangements | E155: 9750 | F155: 0 | H155: 0 | K155: 0 | N155: 0
D156: Other Commitments | E156: 9760 | F156: 0 | H156: 0 | K156: 0 | N156: 0
C157: d. | D157: Assigned | H157: 0 | K157: 0 | N157: 0
D158: Other Assignments | E158: 9780 | F158: 0 | H158: 0 | K158: 0 | N158: 0
C159: e | D159: Unassigned/Unappropriated | H159: 0 | K159: 0 | N159: 0
D160: Reserve for Economic Uncertainities | E160: 9789 | F160: 0 | G160: 0 | H160: 0 | K160: 0 | N160: 0
D161: Unassigned/Unappropriated Amount | E161: 9790 | F161: 1354831.972 | G161: 0.001849612221 | H161: 1354831.974 | I161: 69262.13 | J161: 0 | K161: 69262.13 | L161: 903684.4349 | M161: 0 | N161: 903684.4349

Sheet 1st Summary
A1: CHARTER SCHOOL
A2: INTERIM FINANCIAL REPORT - ALTERNATIVE FORM
A3: First Interim Report - Summary
A6: Charter School Name: | E6: =IF('1st Detail'!G6="","",'1st Detail'!G6) -> Magnolia Science Academy
D7: (continued) | E7: =IF('1st Detail'!G7="","",'1st Detail'!G7) -> Santa Ana
A8: CDS #: | E8: =IF('1st Detail'!G8="","",'1st Detail'!G8) -> 30-76893-0130765
A9: Charter Approving Entity: | E9: =IF('1st Detail'!G9="","",'1st Detail'!G9) -> State Board of Education
A10: County: | E10: =IF('1st Detail'!G10="","",'1st Detail'!G10) -> Orange
A11: Charter #: | E11: =IF('1st Detail'!G11="","",'1st Detail'!G11) -> 1686
A12: Fiscal Year: | E12: =IF('1st Detail'!G12="","",'1st Detail'!G12) -> 2016/17
I14: 1st Interim vs. Adopted
I15: Increase, (Decrease)
F16: 7/1 Adopted | G16: Actuals thru | H16: 1st Interim | I16: $ Difference | J16: % Change
D17: Description | E17: Object Code | F17: Budget (X) | G17: 10/31 (Y) | H17: Budget (Z) | I17: (Z) vs. (X) | J17: (Z) vs. (X)
A18: A. | B18: REVENUES
B19: 1. | C19: LCFF/Revenue Limit Sources
D20: State Aid - Current Year | E20: 8011 | F20: ='1st Detail'!H23 -> 3517160.056 | G20: ='1st Detail'!K23 -> 430852.6 | H20: ='1st Detail'!N23 -> 4208989.284 | I20: =H20-F20 -> 691829.2273 | J20: =IF(AND(F20=0,H20=0),"",(IF(F20="","",(IF(F20=0,"New",(IF(H20=0,"(100%)",((H20/F20)-1)))))))) -> 0.196701093
D21: Education Protection Account State Aid - Current Year | E21: 8012 | F21: ='1st Detail'!H24 -> 102290 | G21: ='1st Detail'!K24 -> 7167 | H21: ='1st Detail'!N24 -> 121204 | I21: =H21-F21 -> 18914 | J21: =IF(AND(F21=0,H21=0),"",(IF(F21="","",(IF(F21=0,"New",(IF(H21=0,"(100%)",((H21/F21)-1)))))))) -> 0.1849056604
D22: Charter Schools Gen. Purpose Entitlement - State Aid | E22: 8015 | F22: ='1st Detail'!H25 -> 0 | G22: ='1st Detail'!K25 -> 0 | H22: ='1st Detail'!N25 -> 0 | I22: =H22-F22 -> 0 | J22: =IF(AND(F22=0,H22=0),"",(IF(F22="","",(IF(F22=0,"New",(IF(H22=0,"(100%)",((H22/F22)-1)))))))) -> 
D23: State Aid - Prior Years | E23: 8019 | F23: ='1st Detail'!H26 -> 0 | G23: ='1st Detail'!K26 -> 0 | H23: ='1st Detail'!N26 -> 0 | I23: 0 | J23: =IF(AND(F23=0,H23=0),"",(IF(F23="","",(IF(F23=0,"New",(IF(H23=0,"(100%)",((H23/F23)-1)))))))) -> 
D24: Tax Relief Subventions | E24: 8020-8039 | F24: ='1st Detail'!H27 -> 0 | G24: ='1st Detail'!K27 -> 0 | H24: ='1st Detail'!N27 -> 0 | I24: 0 | J24: =IF(AND(F24=0,H24=0),"",(IF(F24="","",(IF(F24=0,"New",(IF(H24=0,"(100%)",((H24/F24)-1)))))))) -> 
D25: County and District Taxes | E25: 8040-8079 | F25: ='1st Detail'!H28 -> 0 | G25: ='1st Detail'!K28 -> 0 | H25: ='1st Detail'!N28 -> 0 | I25: 0
D26: Miscellaneous Funds | E26: 8080-8089 | F26: ='1st Detail'!H29 -> 0 | G26: ='1st Detail'!K29 -> 0 | H26: ='1st Detail'!N29 -> 0 | I26: 0
D27: LCFF/Revenue Limit Transfers:
D28: PERS Reduction Transfer | E28: 8092 | F28: ='1st Detail'!H31 -> 0 | G28: ='1st Detail'!K31 -> 0 | H28: ='1st Detail'!N31 -> 0 | I28: 0
D29: Charter Schools Funding in lieu of Property Taxes | E29: 8096 | F29: ='1st Detail'!H32 -> 975861.9435 | G29: ='1st Detail'!K32 -> 66886 | H29: ='1st Detail'!N32 -> 1147080.716 | I29: =H29-F29 -> 171218.7727 | J29: =IF(AND(F29=0,H29=0),"",(IF(F29="","",(IF(F29=0,"New",(IF(H29=0,"(100%)",((H29/F29)-1)))))))) -> 0.1754538886
D30: Other LCFF/Revenue Limit Transfers | E30: 8091, 8097 | F30: ='1st Detail'!H33 -> 0 | G30: ='1st Detail'!K33 -> 0 | H30: ='1st Detail'!N33 -> 0 | I30: 0
D31: Total, LCFF/Revenue Limit Sources | F31: =SUM((F20:F26),(F28:F30)) -> 4595312 | G31: =SUM((G20:G26),(G28:G30)) -> 504905.6 | H31: =SUM((H20:H26),(H28:H30)) -> 5477274 | I31: =SUM((I20:I26),(I28:I30)) -> 881962 | J31: =IF(F31=0,"",(IF(H31=0,0,((H31/F31)-1)))) -> 0.1919264677
B33: 2. | C33: Federal Revenues
D34: No Child Left Behind (Include ARRA) | E34: 8290 | F34: ='1st Detail'!H37 -> 0 | G34: ='1st Detail'!K37 -> 8155 | H34: ='1st Detail'!N37 -> 136851.29 | I34: =H34-F34 -> 136851.29 | J34: =IF(AND(F34=0,H34=0),"",(IF(F34="","",(IF(F34=0,"New",(IF(H34=0,"(100%)",((H34/F34)-1)))))))) -> New
D35: Special Education - Federal | E35: 8181, 8182 | F35: ='1st Detail'!H38 -> 17061.28655 | G35: ='1st Detail'!K38 -> 3590.4 | H35: ='1st Detail'!N38 -> 18000 | I35: =H35-F35 -> 938.71345 | J35: =IF(AND(F35=0,H35=0),"",(IF(F35="","",(IF(F35=0,"New",(IF(H35=0,"(100%)",((H35/F35)-1)))))))) -> 0.05502008581
D36: Child Nutrition - Federal | E36: 8220 | F36: ='1st Detail'!H39 -> 183549.6 | G36: ='1st Detail'!K39 -> 0 | H36: ='1st Detail'!N39 -> 227287.0999 | I36: =H36-F36 -> 43737.49989 | J36: =IF(AND(F36=0,H36=0),"",(IF(F36="","",(IF(F36=0,"New",(IF(H36=0,"(100%)",((H36/F36)-1)))))))) -> 0.2382870891
D37: Donated Food Commodities | E37: 8221 | F37: ='1st Detail'!H40 -> 0 | G37: ='1st Detail'!K40 -> 0 | H37: ='1st Detail'!N40 -> 0 | I37: =H37-F37 -> 0 | J37: =IF(AND(F37=0,H37=0),"",(IF(F37="","",(IF(F37=0,"New",(IF(H37=0,"(100%)",((H37/F37)-1)))))))) -> 
D38: Other Federal Revenues (Include ARRA) | E38: 8110, 8260-8299 | F38: ='1st Detail'!H41 -> 193916.1905 | G38: ='1st Detail'!K41 -> 162 | H38: ='1st Detail'!N41 -> 315916.76 | I38: =H38-F38 -> 122000.5695 | J38: =IF(AND(F38=0,H38=0),"",(IF(F38="","",(IF(F38=0,"New",(IF(H38=0,"(100%)",((H38/F38)-1)))))))) -> 0.6291407088
D39: Total, Federal Revenues | F39: =SUM(F34:F38) -> 394527.077 | G39: =SUM(G34:G38) -> 11907.4 | H39: =SUM(H34:H38) -> 698055.1499 | I39: =SUM(I34:I38) -> 303528.0729 | J39: =IF(AND(F39=0,H39=0),"",(IF(F39="","",(IF(F39=0,"New",(IF(H39=0,"(100%)",((H39/F39)-1)))))))) -> 0.7693466191
B41: 3. | C41: Other State Revenues
D42: Charter Schools Categorical Block Grant | E42: N/A thru 14/15 | F42: ='1st Detail'!H45 -> 0 | G42: ='1st Detail'!K45 -> 0 | H42: ='1st Detail'!N45 -> 0 | I42: =H42-F42 -> 0 | J42: =IF(AND(F42=0,H42=0),"",(IF(F42="","",(IF(F42=0,"New",(IF(H42=0,"(100%)",((H42/F42)-1)))))))) -> 
D43: Special Education - State | E43: StateRevSE | F43: ='1st Detail'!H46 -> 245368.1375 | G43: ='1st Detail'!K46 -> 19851 | H43: ='1st Detail'!N46 -> 304828.06 | I43: =H43-F43 -> 59459.9225 | J43: =IF(AND(F43=0,H43=0),"",(IF(F43="","",(IF(F43=0,"New",(IF(H43=0,"(100%)",((H43/F43)-1)))))))) -> 0.2423294365
D44: All Other State Revenues | E44: StateRevAO | F44: ='1st Detail'!H47 -> 100550.0199 | G44: ='1st Detail'!K47 -> 4877.65 | H44: ='1st Detail'!N47 -> 248753.5152 | I44: =H44-F44 -> 148203.4953 | J44: =IF(AND(F44=0,H44=0),"",(IF(F44="","",(IF(F44=0,"New",(IF(H44=0,"(100%)",((H44/F44)-1)))))))) -> 1.473928055
D45: Total, Other State Revenues | F45: =SUM(F42:F44) -> 345918.1574 | G45: =SUM(G42:G44) -> 24728.65 | H45: =SUM(H42:H44) -> 553581.5752 | I45: =SUM(I42:I44) -> 207663.4178 | J45: =IF(AND(F45=0,H45=0),"",(IF(F45="","",(IF(F45=0,"New",(IF(H45=0,"(100%)",((H45/F45)-1)))))))) -> 0.6003252888
B47: 4. | C47: Other Local Revenues
D48: All Other Local Revenues | E48: LocalRevAO | F48: ='1st Detail'!H51 -> 38504.503 | G48: ='1st Detail'!K51 -> 20849.52 | H48: ='1st Detail'!N51 -> 39235.103 | I48: =H48-F48 -> 730.6 | J48: =IF(AND(F48=0,H48=0),"",(IF(F48="","",(IF(F48=0,"New",(IF(H48=0,"(100%)",((H48/F48)-1)))))))) -> 0.01897440411
D49: Total, Local Revenues | F49: =SUM(F48:F48) -> 38504.503 | G49: =SUM(G48:G48) -> 20849.52 | H49: =SUM(H48:H48) -> 39235.103 | I49: =SUM(I48:I48) -> 730.6 | J49: =IF(AND(F49=0,H49=0),"",(IF(F49="","",(IF(F49=0,"New",(IF(H49=0,"(100%)",((H49/F49)-1)))))))) -> 0.01897440411
B51: 5. | C51: TOTAL REVENUES | F51: =SUM(F31,F39,F45,F49) -> 5374261.737 | G51: =SUM(G31,G39,G45,G49) -> 562391.17 | H51: =SUM(H31,H39,H45,H49) -> 6768145.828 | I51: =SUM(I31,I39,I45,I49) -> 1393884.091 | J51: =IF(AND(F51=0,H51=0),"",(IF(F51="","",(IF(F51=0,"New",(IF(H51=0,"(100%)",((H51/F51)-1)))))))) -> 0.2593628965
A53: B. | B53: EXPENDITURES
B54: 1. | C54: Certificated Salaries
D55: Certificated Teachers' Salaries | E55: 1100 | F55: ='1st Detail'!H58 -> 1787100 | G55: ='1st Detail'!K58 -> 542270.16 | H55: ='1st Detail'!N58 -> 2045656.76 | I55: =H55-F55 -> 258556.76 | J55: =IF(AND(F55=0,H55=0),"",(IF(F55="","",(IF(F55=0,"New",(IF(H55=0,"(100%)",((H55/F55)-1)))))))) -> 0.1446795143
D56: Certificated Pupil Support Salaries | E56: 1200 | F56: ='1st Detail'!H59 -> 0 | G56: ='1st Detail'!K59 -> 0 | H56: ='1st Detail'!N59 -> 0 | I56: =H56-F56 -> 0 | J56: =IF(AND(F56=0,H56=0),"",(IF(F56="","",(IF(F56=0,"New",(IF(H56=0,"(100%)",((H56/F56)-1)))))))) -> 
D57: Certificated Supervisors' and Administrators' Salaries | E57: 1300 | F57: ='1st Detail'!H60 -> 360450 | G57: ='1st Detail'!K60 -> 136767.09 | H57: ='1st Detail'!N60 -> 495669.08 | I57: =H57-F57 -> 135219.08 | J57: =IF(AND(F57=0,H57=0),"",(IF(F57="","",(IF(F57=0,"New",(IF(H57=0,"(100%)",((H57/F57)-1)))))))) -> 0.375139631
D58: Other Certificated Salaries | E58: 1900 | F58: ='1st Detail'!H61 -> 0 | G58: ='1st Detail'!K61 -> 0 | H58: ='1st Detail'!N61 -> 0 | I58: =H58-F58 -> 0 | J58: =IF(AND(F58=0,H58=0),"",(IF(F58="","",(IF(F58=0,"New",(IF(H58=0,"(100%)",((H58/F58)-1)))))))) -> 
D59: Total, Certificated Salaries | F59: =SUM(F55:F58) -> 2147550 | G59: =SUM(G55:G58) -> 679037.25 | H59: =SUM(H55:H58) -> 2541325.84 | I59: =SUM(I55:I58) -> 393775.84 | J59: =IF(AND(F59=0,H59=0),"",(IF(F59="","",(IF(F59=0,"New",(IF(H59=0,"(100%)",((H59/F59)-1)))))))) -> 0.1833604992
B61: 2. | C61: Non-certificated Salaries
D62: Non-certificated Instructional Aides' Salaries | E62: 2100 | F62: ='1st Detail'!H65 -> 0 | G62: ='1st Detail'!K65 -> 0 | H62: ='1st Detail'!N65 -> 0 | I62: =H62-F62 -> 0 | J62: =IF(AND(F62=0,H62=0),"",(IF(F62="","",(IF(F62=0,"New",(IF(H62=0,"(100%)",((H62/F62)-1)))))))) -> 
D63: Non-certificated Support Salaries | E63: 2200 | F63: ='1st Detail'!H66 -> 0 | G63: ='1st Detail'!K66 -> 0 | H63: ='1st Detail'!N66 -> 0 | I63: =H63-F63 -> 0
D64: Non-certificated Supervisors' and Administrators' Sal. | E64: 2300 | F64: ='1st Detail'!H67 -> 0 | G64: ='1st Detail'!K67 -> 0 | H64: ='1st Detail'!N67 -> 0 | I64: =H64-F64 -> 0
D65: Clerical and Office Salaries | E65: 2400 | F65: ='1st Detail'!H68 -> 70000 | G65: ='1st Detail'!K68 -> 46046.78 | H65: ='1st Detail'!N68 -> 473331.07 | I65: =H65-F65 -> 403331.07 | J65: 5.761872429
D66: Other Non-certificated Salaries | E66: 2900 | F66: ='1st Detail'!H69 -> 165580 | G66: ='1st Detail'!K69 -> 51227.98 | H66: ='1st Detail'!N69 -> 0 | I66: =H66-F66 -> -165580 | J66: (100%)
D67: Total, Non-certificated Salaries | F67: =SUM(F62:F66) -> 235580 | G67: =SUM(G62:G66) -> 97274.76 | H67: =SUM(H62:H66) -> 473331.07 | I67: =SUM(I62:I66) -> 237751.07 | J67: 1.00921585
B69: 3. | C69: Employee Benefits
D70: STRS | E70: 3101-3102 | F70: ='1st Detail'!H73 -> 249907.99 | G70: ='1st Detail'!K73 -> 76875.68 | H70: ='1st Detail'!N73 -> 301219.9846 | I70: =H70-F70 -> 51311.99464 | J70: =IF(AND(F70=0,H70=0),"",(IF(F70="","",(IF(F70=0,"New",(IF(H70=0,"(100%)",((H70/F70)-1)))))))) -> 0.2053235458
D71: PERS | E71: 3201-3202 | F71: ='1st Detail'!H74 -> 8427.69 | G71: ='1st Detail'!K74 -> 4748.49 | H71: ='1st Detail'!N74 -> 11250.88268 | I71: 2823.192675 | J71: 0.3349900952
D72: OASDI / Medicare / Alternative | E72: 3301-3302 | F72: ='1st Detail'!H75 -> 59026.23363 | G72: ='1st Detail'!K75 -> 21571.24 | H72: ='1st Detail'!N75 -> 82719.25323 | I72: 23693.0196 | J72: 0.4013981266
D73: Health and Welfare Benefits | E73: 3401-3402 | F73: ='1st Detail'!H76 -> 332100 | G73: ='1st Detail'!K76 -> 84941.58 | H73: ='1st Detail'!N76 -> 342497.2799 | I73: 10397.27987 | J73: 0.03130767801
D74: Unemployment Insurance | E74: 3501-3502 | F74: ='1st Detail'!H77 -> 1191.565 | G74: ='1st Detail'!K77 -> -329 | H74: ='1st Detail'!N77 -> 4507.328455 | I74: 3315.763455 | J74: 2.782696248
D75: Workers' Compensation Insurance | E75: 3601-3602 | F75: ='1st Detail'!H78 -> 23831.3 | G75: ='1st Detail'!K78 -> 4283 | H75: ='1st Detail'!N78 -> 33945.03681 | I75: 10113.73681 | J75: 0.4243887999
D76: OPEB, Allocated | E76: 3701-3702 | F76: ='1st Detail'!H79 -> 0 | G76: ='1st Detail'!K79 -> 0 | H76: ='1st Detail'!N79 -> 0 | I76: 0
D77: OPEB, Active Employees | E77: 3751-3752 | F77: ='1st Detail'!H80 -> 0 | G77: ='1st Detail'!K80 -> 0 | H77: ='1st Detail'!N80 -> 0 | I77: 0
D78: PERS Reduction (for revenue limit funded schools) | E78: 3801-3802 | F78: ='1st Detail'!H81 -> 0 | G78: ='1st Detail'!K81 -> 0 | H78: ='1st Detail'!N81 -> 0 | I78: 0
D79: Other Employee Benefits | E79: 3901-3902 | F79: ='1st Detail'!H82 -> 2142 | G79: ='1st Detail'!K82 -> 0 | H79: ='1st Detail'!N82 -> 0 | I79: -2142 | J79: (100%)
D80: Total, Employee Benefits | F80: =SUM(F70:F79) -> 676626.7786 | G80: =SUM(G70:G79) -> 192090.99 | H80: =SUM(H70:H79) -> 776139.7657 | I80: =SUM(I70:I79) -> 99512.98705 | J80: 0.1470721972
B82: 4. | C82: Books and Supplies
D83: Approved Textbooks and Core Curricula Materials | E83: 4100 | F83: ='1st Detail'!H86 -> 235150 | G83: ='1st Detail'!K86 -> 218154.84 | H83: ='1st Detail'!N86 -> 240000 | I83: =H83-F83 -> 4850 | J83: =IF(AND(F83=0,H83=0),"",(IF(F83="","",(IF(F83=0,"New",(IF(H83=0,"(100%)",((H83/F83)-1)))))))) -> 0.02062513289
D84: Books and Other Reference Materials | E84: 4200 | F84: ='1st Detail'!H87 -> 35000 | G84: ='1st Detail'!K87 -> 1668.7 | H84: ='1st Detail'!N87 -> 20000 | I84: =H84-F84 -> -15000 | J84: -0.4285714286
D85: Materials and Supplies | E85: 4300 | F85: ='1st Detail'!H88 -> 103884.8276 | G85: ='1st Detail'!K88 -> 47835.27 | H85: ='1st Detail'!N88 -> 136191.73 | I85: =H85-F85 -> 32306.90241 | J85: 0.3109876886
D86: Noncapitalized Equipment | E86: 4400 | F86: ='1st Detail'!H89 -> 108850 | G86: ='1st Detail'!K89 -> 74425.63 | H86: ='1st Detail'!N89 -> 194742.82 | I86: =H86-F86 -> 85892.82 | J86: 0.7890934313
D87: Food | E87: 4700 | F87: ='1st Detail'!H90 -> 208845.3714 | G87: ='1st Detail'!K90 -> 52293.08 | H87: ='1st Detail'!N90 -> 275190.7772 | I87: =H87-F87 -> 66345.40579 | J87: 0.3176771663
D88: Total, Books and Supplies | F88: =SUM(F83:F87) -> 691730.199 | G88: =SUM(G83:G87) -> 394377.52 | H88: =SUM(H83:H87) -> 866125.3272 | I88: =SUM(I83:I87) -> 174395.1282 | J88: 0.252114377
B90: 5. | C90: Services and Other Operating Expenditures
D91: Subagreements for Services | E91: 5100 | F91: ='1st Detail'!H94 -> 1005424.196 | G91: ='1st Detail'!K94 -> 324063.88 | H91: ='1st Detail'!N94 -> 1088790.452 | I91: =H91-F91 -> 83366.25532 | J91: =IF(AND(F91=0,H91=0),"",(IF(F91="","",(IF(F91=0,"New",(IF(H91=0,"(100%)",((H91/F91)-1)))))))) -> 0.08291649995
D92: Travel and Conferences | E92: 5200 | F92: ='1st Detail'!H95 -> 28809.09091 | G92: ='1st Detail'!K95 -> 1912.41 | H92: ='1st Detail'!N95 -> 18809.09091 | I92: =H92-F92 -> -10000 | J92: =IF(AND(F92=0,H92=0),"",(IF(F92="","",(IF(F92=0,"New",(IF(H92=0,"(100%)",((H92/F92)-1)))))))) -> -0.3471126538
D93: Dues and Memberships | E93: 5300 | F93: ='1st Detail'!H96 -> 6000 | G93: ='1st Detail'!K96 -> 1820 | H93: ='1st Detail'!N96 -> 6000 | I93: 0 | J93: 0
D94: Insurance | E94: 5400 | F94: ='1st Detail'!H97 -> 32415.12166 | G94: ='1st Detail'!K97 -> 6654 | H94: ='1st Detail'!N97 -> 21456 | I94: -10959.12166 | J94: -0.3380867045
D95: Operations and Housekeeping Services | E95: 5500 | F95: ='1st Detail'!H98 -> 63500 | G95: ='1st Detail'!K98 -> 40981.79 | H95: ='1st Detail'!N98 -> 169772.38 | I95: 106272.38 | J95: 1.673580787
D96: Rentals, Leases, Repairs, and Noncap. Improvements | E96: 5600 | F96: ='1st Detail'!H99 -> 50344 | G96: ='1st Detail'!K99 -> 44650.59 | H96: ='1st Detail'!N99 -> 88839.43 | I96: 38495.43 | J96: 0.764647823
D97: Professional/Consulting Services and Operating Expend. | E97: 5800 | F97: ='1st Detail'!H100 -> 576677.4802 | G97: ='1st Detail'!K100 -> 53432.33 | H97: ='1st Detail'!N100 -> 672337.9924 | I97: 95660.51216 | J97: 0.1658821706
D98: Communications | E98: 5900 | F98: ='1st Detail'!H101 -> 12598.6956 | G98: ='1st Detail'!K101 -> 6002.18 | H98: ='1st Detail'!N101 -> 24798.6956 | I98: 12200 | J98: 0.968354216
D99: Total, Services and Other Operating Expenditures | F99: =SUM(F91:F98) -> 1775768.585 | G99: =SUM(G91:G98) -> 479517.18 | H99: =SUM(H91:H98) -> 2090804.04 | I99: =SUM(I91:I98) -> 315035.4558 | J99: 0.1774079452
B101: 6. | C101: Capital Outlay (Objects 6100-6170, 6200-6500 modified accrual basis only)
D102: Land and Land Improvements | E102: 6100-6170 | F102: ='1st Detail'!H105 -> 0 | G102: ='1st Detail'!K105 -> 0 | H102: ='1st Detail'!N105 -> 0 | I102: =H102-F102 -> 0 | J102: =IF(AND(F102=0,H102=0),"",(IF(F102="","",(IF(F102=0,"New",(IF(H102=0,"(100%)",((H102/F102)-1)))))))) -> 
D103: Buildings and Improvements of Buildings | E103: 6200 | F103: ='1st Detail'!H106 -> 0 | G103: ='1st Detail'!K106 -> 0 | H103: ='1st Detail'!N106 -> 0 | I103: =H103-F103 -> 0 | J103: =IF(AND(F103=0,H103=0),"",(IF(F103="","",(IF(F103=0,"New",(IF(H103=0,"(100%)",((H103/F103)-1)))))))) -> 
D104: Books and Media for New School Libraries or Major
D105: Expansion of School Libraries | E105: 6300 | F105: ='1st Detail'!H108 -> 0 | G105: ='1st Detail'!K108 -> 0 | H105: ='1st Detail'!N108 -> 0 | I105: =H105-F105 -> 0 | J105: =IF(AND(F105=0,H105=0),"",(IF(F105="","",(IF(F105=0,"New",(IF(H105=0,"(100%)",((H105/F105)-1)))))))) -> 
D106: Equipment | E106: 6400 | F106: ='1st Detail'!H109 -> 0 | G106: ='1st Detail'!K109 -> 0 | H106: ='1st Detail'!N109 -> 0 | I106: =H106-F106 -> 0 | J106: =IF(AND(F106=0,H106=0),"",(IF(F106="","",(IF(F106=0,"New",(IF(H106=0,"(100%)",((H106/F106)-1)))))))) -> 
D107: Equipment Replacement | E107: 6500 | F107: ='1st Detail'!H110 -> 0 | G107: ='1st Detail'!K110 -> 0 | H107: ='1st Detail'!N110 -> 0 | I107: =H107-F107 -> 0 | J107: =IF(AND(F107=0,H107=0),"",(IF(F107="","",(IF(F107=0,"New",(IF(H107=0,"(100%)",((H107/F107)-1)))))))) -> 
D108: Depreciation Expense (for accrual basis only) | E108: 6900 | F108: ='1st Detail'!H111 -> 397233.8718 | G108: ='1st Detail'!K111 -> 132411.32 | H108: ='1st Detail'!N111 -> 363466.4233 | I108: =H108-F108 -> -33767.44849 | J108: =IF(AND(F108=0,H108=0),"",(IF(F108="","",(IF(F108=0,"New",(IF(H108=0,"(100%)",((H108/F108)-1)))))))) -> -0.08500646819
D109: Total, Capital Outlay | F109: =SUM(F102:F103)+SUM(F105:F108) -> 397233.8718 | G109: =SUM(G102:G103)+SUM(G105:G108) -> 132411.32 | H109: =SUM(H102:H103)+SUM(H105:H108) -> 363466.4233 | I109: =SUM(I102:I103)+SUM(I105:I108) -> -33767.44849 | J109: =IF(AND(F109=0,H109=0),"",(IF(F109="","",(IF(F109=0,"New",(IF(H109=0,"(100%)",((H109/F109)-1)))))))) -> -0.08500646819
B111: 7. | C111: Other Outgo
D112: Tuition to Other Schools | E112: 7110-7143 | F112: ='1st Detail'!H115 -> 0 | G112: ='1st Detail'!K115 -> 0 | H112: ='1st Detail'!N115 -> 0 | I112: =H112-F112 -> 0 | J112: =IF(AND(F112=0,H112=0),"",(IF(F112="","",(IF(F112=0,"New",(IF(H112=0,"(100%)",((H112/F112)-1)))))))) -> 
D113: Transfers of Pass-through Revenues to Other LEAs | E113: 7211-7213 | F113: ='1st Detail'!H116 -> 0 | G113: ='1st Detail'!K116 -> 0 | H113: ='1st Detail'!N116 -> 0 | I113: =H113-F113 -> 0
D114: Transfers of Apportionments to Other LEAs - Spec. Ed. | E114: 7221-7223SE | F114: ='1st Detail'!H117 -> 0 | G114: ='1st Detail'!K117 -> 0 | H114: ='1st Detail'!N117 -> 0 | I114: =H114-F114 -> 0
D115: Transfers of Apportionments to Other LEAs - All Other | E115: 7221-7223AO | F115: ='1st Detail'!H118 -> 0 | G115: ='1st Detail'!K118 -> 0 | H115: ='1st Detail'!N118 -> 0 | I115: =H115-F115 -> 0
D116: All Other Transfers | E116: 7281-7299 | F116: ='1st Detail'!H119 -> 0 | G116: ='1st Detail'!K119 -> 0 | H116: ='1st Detail'!N119 -> 0 | I116: =H116-F116 -> 0
D117: Debt Service:
D118: Interest | E118: 7438 | F118: ='1st Detail'!H121 -> 0 | G118: ='1st Detail'!K121 -> 0 | H118: ='1st Detail'!N121 -> 0 | I118: =H118-F118 -> 0
D119: Principal (for modified accrual basis only) | E119: 7439 | F119: ='1st Detail'!H122 -> 0 | G119: ='1st Detail'!K122 -> 0 | H119: ='1st Detail'!N122 -> 0 | I119: =H119-F119 -> 0
D120: Total, Other Outgo | F120: =SUM(F112:F116,F118:F119) -> 0 | G120: =SUM(G112:G116,G118:G119) -> 0 | H120: =SUM(H112:H116,H118:H119) -> 0 | I120: =SUM(I112:I116,I118:I119) -> 0
B122: 8. | C122: TOTAL EXPENDITURES | F122: =SUM(F59,F67,F80,F88,F99,F109,F120) -> 5924489.434 | G122: =SUM(G59,G67,G80,G88,G99,G109,G120) -> 1974709.02 | H122: =SUM(H59,H67,H80,H88,H99,H109,H120) -> 7111192.467 | I122: =SUM(I59,I67,I80,I88,I99,I109,I120) -> 1186703.033 | J122: =IF(AND(F122=0,H122=0),"",(IF(F122="","",(IF(F122=0,"New",(IF(H122=0,"(100%)",((H122/F122)-1)))))))) -> 0.2003046922
A124: C. | B124: EXCESS (DEFICIENCY) OF REVENUES OVER EXPEND.
B125: BEFORE OTHER FINANCING SOURCES AND USES (A5-B8) | F125: =SUM(F51-F122) -> -550227.6966 | G125: =SUM(G51-G122) -> -1412317.85 | H125: =SUM(H51-H122) -> -343046.6386 | I125: =SUM(I51-I122) -> 207181.058 | J125: =IF(AND(F125=0,H125=0),"",(IF(F125="","",(IF(F125=0,"New",(IF(H125=0,"(100%)",((H125/F125)-1)))))))) -> -0.3765369488
A127: D. | B127: OTHER FINANCING SOURCES / USES
B128: 1. | C128: Other Sources | E128: 8930-8979 | F128: ='1st Detail'!H131 -> 0 | G128: ='1st Detail'!K131 -> 0 | H128: ='1st Detail'!N131 -> 0 | I128: =H128-F128 -> 0 | J128: =IF(AND(F128=0,H128=0),"",(IF(F128="","",(IF(F128=0,"New",(IF(H128=0,"(100%)",((H128/F128)-1)))))))) -> 
B129: 2. | C129: Less: Other Uses | E129: 7630-7699 | F129: ='1st Detail'!H132 -> 0 | G129: ='1st Detail'!K132 -> 0 | H129: ='1st Detail'!N132 -> 0 | I129: =H129-F129 -> 0 | J129: =IF(AND(F129=0,H129=0),"",(IF(F129="","",(IF(F129=0,"New",(IF(H129=0,"(100%)",((H129/F129)-1)))))))) -> 
B130: 3. | C130: Contributions Between Unrestricted and Restricted Accounts
C131: (must net to zero) | E131: 8980-8999 | F131: ='1st Detail'!H134 -> 0 | G131: ='1st Detail'!K134 -> 0 | H131: ='1st Detail'!N134 -> 0 | I131: =H131-F131 -> 0 | J131: =IF(AND(F131=0,H131=0),"",(IF(F131="","",(IF(F131=0,"New",(IF(H131=0,"(100%)",((H131/F131)-1)))))))) -> 
B133: 4. | C133: TOTAL OTHER FINANCING SOURCES / USES | F133: =SUM(+F128-F129+F131) -> 0 | G133: =SUM(+G128-G129+G131) -> 0 | H133: =SUM(+H128-H129+H131) -> 0 | I133: =SUM(+I128-I129+I131) -> 0 | J133: =IF(AND(F133=0,H133=0),"",(IF(F133="","",(IF(F133=0,"New",(IF(H133=0,"(100%)",((H133/F133)-1)))))))) -> 
A135: E. | B135: NET INCREASE (DECREASE) IN FUND BALANCE (C + D4) | F135: =SUM(F125,F133) -> -550227.6966 | G135: =SUM(G125,G133) -> -1412317.85 | H135: =SUM(H125,H133) -> -343046.6386 | I135: =SUM(I125,I133) -> 207181.058 | J135: =IF(AND(F135=0,H135=0),"",(IF(F135="","",(IF(F135=0,"New",(IF(H135=0,"(100%)",((H135/F135)-1)))))))) -> -0.3765369488
A137: F. | B137: FUND BALANCE, RESERVES
B138: 1. | C138: Beginning Fund Balance
C139: a. | D139: As of July 1 | E139: 9791 | F139: ='1st Detail'!H142 -> 8212886.531 | G139: ='1st Detail'!K142 -> 8291101.38 | H139: ='1st Detail'!N142 -> 8291101.38 | I139: =H139-F139 -> 78214.84929 | J139: =IF(AND(F139=0,H139=0),"",(IF(F139="","",(IF(F139=0,"New",(IF(H139=0,"(100%)",((H139/F139)-1)))))))) -> 0.009523429917
C140: b. | D140: Adjustments to Beginning Balance | E140: 9793, 9795 | F140: ='1st Detail'!H143 -> 0 | G140: ='1st Detail'!K143 -> 7819.62 | H140: ='1st Detail'!N143 -> 7819.62 | I140: =H140-F140 -> 7819.62 | J140: =IF(AND(F140=0,H140=0),"",(IF(F140="","",(IF(F140=0,"New",(IF(H140=0,"(100%)",((H140/F140)-1)))))))) -> New
C141: c. | D141: Adjusted Beginning Balance | F141: =SUM(F139:F140) -> 8212886.531 | G141: =SUM(G139:G140) -> 8298921 | H141: =SUM(H139:H140) -> 8298921
B142: 2. | C142: Ending Fund Balance, June 30 (E + F.1.c.) | F142: =SUM(F135,F141) -> 7662658.834 | G142: =SUM(G135,G141) -> 6886603.15 | H142: =SUM(H135,H141) -> 7955874.361
C144: Components of Ending Fund Balance :
C145: a. | D145: Nonspendable | J145: =IF(AND(F145=0,H145=0),"",(IF(F145="","",(IF(F145=0,"New",(IF(H145=0,"(100%)",((H145/F145)-1)))))))) -> 
D146: Revolving Cash (equals object 9130) | E146: 9711 | F146: ='1st Detail'!H149 -> 0 | G146: ='1st Detail'!K149 -> 0 | H146: ='1st Detail'!N149 -> 0 | I146: =H146-F146 -> 0 | J146: =IF(AND(F146=0,H146=0),"",(IF(F146="","",(IF(F146=0,"New",(IF(H146=0,"(100%)",((H146/F146)-1)))))))) -> 
D147: Stores (equals object 9320) | E147: 9712 | F147: ='1st Detail'!H150 -> 0 | G147: ='1st Detail'!K150 -> 0 | H147: ='1st Detail'!N150 -> 0 | I147: =H147-F147 -> 0
D148: Prepaid Expenditures (equals object 9330) | E148: 9713 | F148: ='1st Detail'!H151 -> 0 | G148: ='1st Detail'!K151 -> 0 | H148: ='1st Detail'!N151 -> 0 | I148: =H148-F148 -> 0
D149: All Others | E149: 9719 | F149: ='1st Detail'!H152 -> 0 | G149: ='1st Detail'!K152 -> 0 | H149: ='1st Detail'!N152 -> 0 | I149: =H149-F149 -> 0
C150: b. | D150: Restricted | E150: 9740 | F150: ='1st Detail'!H153 -> 6307826.86 | G150: ='1st Detail'!K153 -> 6817341.02 | H150: ='1st Detail'!N153 -> 7051314.928 | I150: =H150-F150 -> 743488.0677 | J150: 0.1178675452
C151: c | D151: Committed
D152: Stabilization Arrangements | E152: 9750 | F152: ='1st Detail'!H155 -> 0 | G152: ='1st Detail'!K155 -> 0 | H152: ='1st Detail'!N155 -> 0 | I152: =H152-F152 -> 0 | J152: =IF(AND(F152=0,H152=0),"",(IF(F152="","",(IF(F152=0,"New",(IF(H152=0,"(100%)",((H152/F152)-1)))))))) -> 
D153: Other Commitments | E153: 9760 | F153: ='1st Detail'!H156 -> 0 | G153: ='1st Detail'!K156 -> 0 | H153: ='1st Detail'!N156 -> 0 | I153: 0
C154: d | D154: Assigned
D155: Other Assignments | E155: 9780 | F155: ='1st Detail'!H158 -> 0 | G155: ='1st Detail'!K158 -> 0 | H155: ='1st Detail'!N158 -> 0 | I155: 0
C156: e. | D156: Unassigned/Unappropriated
D157: Reserve for Economic Uncertainties | E157: 9789 | F157: ='1st Detail'!H160 -> 0 | G157: ='1st Detail'!K160 -> 0 | H157: ='1st Detail'!N160 -> 0 | I157: 0
D158: Unassigned/Unappropriated Amount | E158: 9790 | F158: ='1st Detail'!H161 -> 1354831.974 | G158: ='1st Detail'!K161 -> 69262.13 | H158: ='1st Detail'!N161 -> 903684.4349 | I158: -451147.5392 | J158: -0.3329915058

Sheet 1st MYP
A1: CHARTER SCHOOL
A2: MULTI-YEAR PROJECTION - ALTERNATIVE FORM
A3: First Interim Report - MYP
A6: Charter School Name: | E6: =IF('1st Detail'!G6="","",'1st Detail'!G6) -> Magnolia Science Academy
D7: (continued) | E7: =IF('1st Detail'!G7="","",'1st Detail'!G7) -> Santa Ana
A8: CDS #: | E8: =IF('1st Detail'!G8="","",'1st Detail'!G8) -> 30-76893-0130765
A9: Charter Approving Entity: | E9: =IF('1st Detail'!G9="","",'1st Detail'!G9) -> State Board of Education
A10: County: | E10: =IF('1st Detail'!G10="","",'1st Detail'!G10) -> Orange
A11: Charter #: | E11: =IF('1st Detail'!G11="","",'1st Detail'!G11) -> 1686
A12: Fiscal Year: | E12: =IF('1st Detail'!G12="","",'1st Detail'!G12) -> 2016/17
A14: This charter school uses the following basis of accounting:
B15: X | C15: Accrual Basis (Applicable Capital Assets / Interest on Long-Term Debt / Long-Term Liabilities objects are 6900, 7438, 9400-9499, and 9660-9669)
C17: Modified Accrual Basis (Applicable Capital Outlay / Debt Service objects are 6100-6170, 6200-6500, 7438, and 7439)
N18: Look-up Table - Do Not Delete
F19: =CONCATENATE("FY ",E12) -> FY 2016/17 | I19: Totals for | J19: Totals for | N19: 2016/17 | O19: 2017/18 | P19: 2018/19
D20: Description | E20: Object Code | F20: Unrestricted | G20: Restricted | H20: Total | I20: =IF(E12="","",((VLOOKUP(E12,Fiscal_Year,2,FALSE)))) -> 2017/18 | J20: =IF(E12="","",((VLOOKUP(E12,Fiscal_Year,3,FALSE)))) -> 2018/19 | N20: 2017/18 | O20: 2018/19 | P20: 2019/20
A21: A. | B21: REVENUES | N21: 2018/19 | O21: 2019/20 | P21: 2020/21
B22: 1. | C22: LCFF/Revenue Limit Sources | N22: 2019/20 | O22: 2020/21 | P22: 2021/22
D23: State Aid - Current Year | E23: 8011 | F23: ='1st Detail'!L23 -> 4208989.284 | G23: ='1st Detail'!M23 -> 0 | H23: =F23+G23 -> 4208989.284 | I23: 6174653.502 | J23: 6631547.337 | N23: 2020/21 | O23: 2021/22 | P23: 2022/23
D24: Education Protection Account State Aid - Current Year | E24: 8012 | F24: ='1st Detail'!L24 -> 121204 | G24: ='1st Detail'!M24 -> 0 | H24: =F24+G24 -> 121204 | I24: 156523 | J24: 161734 | N24: 2021/22 | O24: 2022/23 | P24: 2023/24
D25: Charter Schools Gen. Purpose Entitlement - State Aid | E25: 8015 | F25: ='1st Detail'!L25 -> 0 | G25: ='1st Detail'!M25 -> 0 | H25: =F25+G25 -> 0 | N25: 2022/23 | O25: 2023/24 | P25: 2024/25
D26: State Aid - Prior Years | E26: 8019 | F26: ='1st Detail'!L26 -> 0 | G26: ='1st Detail'!M26 -> 0 | H26: =F26+G26 -> 0 | I26: 0 | J26: 0 | N26: 2023/24 | O26: 2024/25 | P26: 2025/26
D27: Tax Relief Subventions | E27: 8020-8039 | F27: ='1st Detail'!L27 -> 0 | G27: ='1st Detail'!M27 -> 0 | H27: 0 | N27: 2024/25 | O27: 2025/26 | P27: 2026/27
D28: County and District Taxes | E28: 8040-8079 | F28: ='1st Detail'!L28 -> 0 | G28: ='1st Detail'!M28 -> 0 | H28: 0 | N28: 2025/26 | O28: 2026/27 | P28: 2027/28
D29: Miscellaneous Funds | E29: 8080-8089 | F29: ='1st Detail'!L29 -> 0 | G29: ='1st Detail'!M29 -> 0 | H29: 0 | N29: 2026/27 | O29: 2027/28 | P29: 2028/29
D30: LCFF/Revenue Limit Transfers:
D31: PERS Reduction Transfer | E31: 8092 | F31: ='1st Detail'!L31 -> 0 | G31: ='1st Detail'!M31 -> 0 | H31: =F31+G31 -> 0
D32: Charter Schools Funding in lieu of Property Taxes | E32: 8096 | F32: ='1st Detail'!L32 -> 1147080.716 | G32: ='1st Detail'!M32 -> 0 | H32: =F32+G32 -> 1147080.716 | I32: 1481341.498 | J32: 1530658.663
D33: Other LCFF/Revenue Limit Transfers | E33: 8091, 8097 | F33: ='1st Detail'!L33 -> 0 | G33: ='1st Detail'!M33 -> 0 | H33: =F33+G33 -> 0
D34: Total, LCFF/Revenue Limit Sources | F34: =SUM((F23:F29),(F31:F33)) -> 5477274 | G34: =SUM((G23:G29),(G31:G33)) -> 0 | H34: =F34+G34 -> 5477274 | I34: =SUM((I23:I29),(I31:I33)) -> 7812518 | J34: =SUM((J23:J29),(J31:J33)) -> 8323940
B36: 2. | C36: Federal Revenues
D37: No Child Left Behind | E37: 8290 | F37: ='1st Detail'!L37 -> 0 | G37: ='1st Detail'!M37 -> 136851.29 | H37: =F37+G37 -> 136851.29 | I37: 182716.8252 | J37: 191166.1992
D38: Special Education - Federal | E38: 8181, 8182 | F38: ='1st Detail'!L38 -> 0 | G38: ='1st Detail'!M38 -> 18000 | H38: 18000 | I38: 78500 | J38: 101375
D39: Child Nutrition - Federal | E39: 8220 | F39: ='1st Detail'!L39 -> 0 | G39: ='1st Detail'!M39 -> 227287.0999 | H39: 227287.0999 | I39: 293507.9655 | J39: 303334.2874
D40: Donated Food Commodities | E40: 8221 | F40: ='1st Detail'!L40 -> 0 | G40: ='1st Detail'!M40 -> 0 | H40: 0
D41: Other Federal Revenues | E41: 8110, 8260-8299 | F41: ='1st Detail'!L41 -> 54562 | G41: ='1st Detail'!M41 -> 261354.76 | H41: 315916.76 | I41: 56198.86 | J41: 57884.8258
D42: Total, Federal Revenues | F42: =SUM(F37:F41) -> 54562 | G42: =SUM(G37:G41) -> 643493.1499 | H42: 698055.1499 | I42: =SUM(I37:I41) -> 610923.6506 | J42: =SUM(J37:J41) -> 653760.3125
B44: 3. | C44: Other State Revenues
D45: Charter Schools Categorical Block Grant | E45: N/A thru 14/15
D46: Special Education - State | E46: StateRevSE | F46: ='1st Detail'!L46 -> 0 | G46: ='1st Detail'!M46 -> 304828.06 | H46: =F46+G46 -> 304828.06 | I46: 345049.9904 | J46: 456381.4687
D47: All Other State Revenues | E47: StateRevAO | F47: ='1st Detail'!L47 -> 147808.4932 | G47: ='1st Detail'!M47 -> 100945.022 | H47: =F47+G47 -> 248753.5152 | I47: 195776.4063 | J47: 207130.1731
D48: Total, Other State Revenues | F48: =SUM(F45:F47) -> 147808.4932 | G48: =SUM(G45:G47) -> 405773.082 | H48: =F48+G48 -> 553581.5752 | I48: =SUM(I45:I47) -> 540826.3967 | J48: =SUM(J45:J47) -> 663511.6418
B50: 4. | C50: Other Local Revenues
D51: All Other Local Revenues | E51: LocalRevAO | F51: ='1st Detail'!L51 -> 39235.103 | G51: ='1st Detail'!M51 -> 0 | H51: =F51+G51 -> 39235.103 | I51: 44035.15609 | J51: 44756.21077
D52: Total, Local Revenues | F52: =SUM(F51:F51) -> 39235.103 | G52: =SUM(G51:G51) -> 0 | H52: =F52+G52 -> 39235.103 | I52: =SUM(I51:I51) -> 44035.15609 | J52: =SUM(J51:J51) -> 44756.21077
B54: 5. | C54: TOTAL REVENUES | F54: =SUM(F34,F42,F48,F52) -> 5718879.596 | G54: =SUM(G34,G42,G48,G52) -> 1049266.232 | H54: =F54+G54 -> 6768145.828 | I54: =SUM(I34,I42,I48,I52) -> 9008303.203 | J54: =SUM(J34,J42,J48,J52) -> 9685968.165
A56: B. | B56: EXPENDITURES
B57: 1. | C57: Certificated Salaries
D58: Certificated Teachers' Salaries | E58: 1100 | F58: ='1st Detail'!L58 -> 1781679.326 | G58: ='1st Detail'!M58 -> 263977.4345 | H58: =F58+G58 -> 2045656.76 | I58: 2378091.81 | J58: 2624483.064
D59: Certificated Pupil Support Salaries | E59: 1200 | F59: ='1st Detail'!L59 -> 0 | G59: ='1st Detail'!M59 -> 0 | H59: =F59+G59 -> 0 | I59: 0 | J59: 0
D60: Certificated Supervisors' and Administrators' Salaries | E60: 1300 | F60: ='1st Detail'!L60 -> 360063.1564 | G60: ='1st Detail'!M60 -> 135605.9236 | H60: =F60+G60 -> 495669.08 | I60: 586114.5372 | J60: 704483.4733
D61: Other Certificated Salaries | E61: 1900 | F61: ='1st Detail'!L61 -> 0 | G61: ='1st Detail'!M61 -> 0 | H61: =F61+G61 -> 0 | I61: 0 | J61: 0
D62: Total, Certificated Salaries | F62: =SUM(F58:F61) -> 2141742.482 | G62: =SUM(G58:G61) -> 399583.3581 | H62: =F62+G62 -> 2541325.84 | I62: =SUM(I58:I61) -> 2964206.347 | J62: =SUM(J58:J61) -> 3328966.538
B64: 2. | C64: Non-certificated Salaries
D65: Non-certificated Instructional Aides' Salaries | E65: 2100 | F65: ='1st Detail'!L65 -> 0 | G65: ='1st Detail'!M65 -> 0 | H65: =F65+G65 -> 0 | I65: 0 | J65: 0
D66: Non-certificated Support Salaries | E66: 2200 | F66: ='1st Detail'!L66 -> 0 | G66: ='1st Detail'!M66 -> 0 | H66: 0 | I66: 0 | J66: 0
D67: Non-certificated Supervisors' and Administrators' Sal. | E67: 2300 | F67: ='1st Detail'!L67 -> 0 | G67: ='1st Detail'!M67 -> 0 | H67: 0 | I67: 0 | J67: 0
D68: Clerical and Office Salaries | E68: 2400 | F68: ='1st Detail'!L68 -> 380571.07 | G68: ='1st Detail'!M68 -> 92760 | H68: 473331.07 | I68: 620092.2081 | J68: 734175.9743
D69: Other Non-certificated Salaries | E69: 2900 | F69: ='1st Detail'!L69 -> 0 | G69: ='1st Detail'!M69 -> 0 | H69: 0 | I69: 0 | J69: 0
D70: Total, Non-certificated Salaries | F70: =SUM(F65:F69) -> 380571.07 | G70: =SUM(G65:G69) -> 92760 | H70: 473331.07 | I70: =SUM(I65:I69) -> 620092.2081 | J70: =SUM(J65:J69) -> 734175.9743
F72: =F19 -> FY 2016/17 | I72: Totals for | J72: Totals for | N72: 2006/07 | O72: 2007/08 | P72: 2008/09
D73: Description | E73: Object Code | F73: Unrestricted | G73: Restricted | H73: Total | I73: =I20 -> 2017/18 | J73: =J20 -> 2018/19 | N73: 2007/08 | O73: 2008/09 | P73: 2009/10
B74: 3. | C74: Employee Benefits
D75: STRS | E75: 3101-3102 | F75: ='1st Detail'!L73 -> 252025.7767 | G75: ='1st Detail'!M73 -> 49194.2079 | H75: =F75+G75 -> 301219.9846 | I75: 405341.3536 | J75: 515933.2148
D76: PERS | E76: 3201-3202 | F76: ='1st Detail'!L74 -> 9413.427362 | G76: ='1st Detail'!M74 -> 1837.455314 | H76: 11250.88268 | I76: 12933.49236 | J76: 31023.87042
D77: OASDI / Medicare / Alternative | E77: 3301-3302 | F77: ='1st Detail'!L75 -> 69209.83039 | G77: ='1st Detail'!M75 -> 13509.42284 | H77: 82719.25323 | I77: 100585.6993 | J77: 114911.7798
D78: Health and Welfare Benefits | E78: 3401-3402 | F78: ='1st Detail'!L76 -> 286561.8066 | G78: ='1st Detail'!M76 -> 55935.47324 | H78: 342497.2799 | I78: 394956 | J78: 473260.32
D79: Unemployment Insurance | E79: 3501-3502 | F79: ='1st Detail'!L77 -> 3771.207134 | G79: ='1st Detail'!M77 -> 736.1213212 | H79: 4507.328455 | I79: 1792.149278 | J79: 2031.571256
D80: Workers' Compensation Insurance | E80: 3601-3602 | F80: ='1st Detail'!L78 -> 28401.25059 | G80: ='1st Detail'!M78 -> 5543.786212 | H80: 33945.03681 | I80: 40359.20173 | J80: 45750.98468
D81: OPEB, Allocated | E81: 3701-3702 | F81: ='1st Detail'!L79 -> 0 | G81: ='1st Detail'!M79 -> 0 | H81: 0 | I81: 0 | J81: 0
D82: OPEB, Active Employees | E82: 3751-3752 | F82: ='1st Detail'!L80 -> 0 | G82: ='1st Detail'!M80 -> 0 | H82: 0
D83: PERS Reduction (for revenue limit funded schools) | E83: 3801-3802 | F83: ='1st Detail'!L81 -> 0 | G83: ='1st Detail'!M81 -> 0 | H83: 0 | I83: 0 | J83: 0
D84: Other Employee Benefits | E84: 3901-3902 | F84: ='1st Detail'!L82 -> 0 | G84: ='1st Detail'!M82 -> 0 | H84: 0 | I84: 0 | J84: 0
D85: Total, Employee Benefits | F85: =SUM(F75:F84) -> 649383.2989 | G85: =SUM(G75:G84) -> 126756.4668 | H85: 776139.7657 | I85: =SUM(I75:I84) -> 955967.8963 | J85: =SUM(J75:J84) -> 1182911.741
B87: 4. | C87: Books and Supplies
D88: Approved Textbooks and Core Curricula Materials | E88: 4100 | F88: ='1st Detail'!L86 -> 31614.76 | G88: ='1st Detail'!M86 -> 208385.24 | H88: =F88+G88 -> 240000 | I88: 240000 | J88: 240000
D89: Books and Other Reference Materials | E89: 4200 | F89: ='1st Detail'!L87 -> 20000 | G89: ='1st Detail'!M87 -> 0 | H89: 20000 | I89: 53886.79245 | J89: 55503.39623
D90: Materials and Supplies | E90: 4300 | F90: ='1st Detail'!L88 -> 110221.278 | G90: ='1st Detail'!M88 -> 25970.45199 | H90: 136191.73 | I90: 145112.5744 | J90: 153552.4517
D91: Noncapitalized Equipment | E91: 4400 | F91: ='1st Detail'!L89 -> 141798.73 | G91: ='1st Detail'!M89 -> 52944.09 | H91: 194742.82 | I91: 70000 | J91: 64300
D92: Food | E92: 4700 | F92: ='1st Detail'!L90 -> 5000 | G92: ='1st Detail'!M90 -> 270190.7772 | H92: 275190.7772 | I92: 370453.1995 | J92: 382100.3226
D93: Total, Books and Supplies | F93: =SUM(F88:F92) -> 308634.768 | G93: =SUM(G88:G92) -> 557490.5592 | H93: 866125.3272 | I93: =SUM(I88:I92) -> 879452.5664 | J93: =SUM(J88:J92) -> 895456.1705
B95: 5. | C95: Services and Other Operating Expenditures
D96: Subagreements for Services | E96: 5100 | F96: ='1st Detail'!L94 -> 1088790.452 | G96: ='1st Detail'!M94 -> 0 | H96: =F96+G96 -> 1088790.452 | I96: 936441.9478 | J96: 939884.7418
D97: Travel and Conferences | E97: 5200 | F97: ='1st Detail'!L95 -> 18809.09091 | G97: ='1st Detail'!M95 -> 0 | H97: =F97+G97 -> 18809.09091 | I97: 19373.36364 | J97: 19954.56455
D98: Dues and Memberships | E98: 5300 | F98: ='1st Detail'!L96 -> 6000 | G98: ='1st Detail'!M96 -> 0 | H98: 6000 | I98: 6180 | J98: 6365.4
D99: Insurance | E99: 5400 | F99: ='1st Detail'!L97 -> 21456 | G99: ='1st Detail'!M97 -> 0 | H99: 21456 | I99: 44892.92994 | J99: 46239.71784
D100: Operations and Housekeeping Services | E100: 5500 | F100: ='1st Detail'!L98 -> 169772.38 | G100: ='1st Detail'!M98 -> 0 | H100: 169772.38 | I100: 166455.5514 | J100: 171449.2179
D101: Rentals, Leases, Repairs, and Noncap. Improvements | E101: 5600 | F101: ='1st Detail'!L99 -> 88839.43 | G101: ='1st Detail'!M99 -> 0 | H101: 88839.43 | I101: 97344 | J101: 100264.32
D102: Professional/Consulting Services and Operating Expend. | E102: 5800 | F102: ='1st Detail'!L100 -> 651975.7024 | G102: ='1st Detail'!M100 -> 20362.29 | H102: 672337.9924 | I102: 1149459.34 | J102: 1159663.083
D103: Communications | E103: 5900 | F103: ='1st Detail'!L101 -> 24798.6956 | G103: ='1st Detail'!M101 -> 0 | H103: 24798.6956 | I103: 17500 | J103: 18025
D104: Total, Services and Other Operating Expenditures | F104: =SUM(F96:F103) -> 2070441.75 | G104: =SUM(G96:G103) -> 20362.29 | H104: 2090804.04 | I104: =SUM(I96:I103) -> 2437647.133 | J104: =SUM(J96:J103) -> 2461846.045
B106: 6. | C106: Capital Outlay (Obj. 6100-6170, 6200-6500 for mod. accr. basis only)
D107: Land and Land Improvements | E107: 6100-6170 | F107: ='1st Detail'!L105 -> 0 | G107: ='1st Detail'!M105 -> 0 | H107: =F107+G107 -> 0
D108: Buildings and Improvements of Buildings | E108: 6200 | F108: ='1st Detail'!L106 -> 0 | G108: ='1st Detail'!M106 -> 0 | H108: =F108+G108 -> 0
D109: Books and Media for New School Libraries or Major
D110: Expansion of School Libraries | E110: 6300 | F110: ='1st Detail'!L108 -> 0 | G110: ='1st Detail'!M108 -> 0 | H110: =F110+G110 -> 0
D111: Equipment | E111: 6400 | F111: ='1st Detail'!L109 -> 0 | G111: ='1st Detail'!M109 -> 0 | H111: =F111+G111 -> 0
D112: Equipment Replacement | E112: 6500 | F112: ='1st Detail'!L110 -> 0 | G112: ='1st Detail'!M110 -> 0 | H112: =F112+G112 -> 0
D113: Depreciation Expense (for accrual basis only) | E113: 6900 | F113: ='1st Detail'!L111 -> 363466.4233 | G113: ='1st Detail'!M111 -> 0 | H113: =F113+G113 -> 363466.4233 | I113: 538821.8392 | J113: 516859.1344
D114: Total, Capital Outlay | F114: =SUM(F107:F108)+SUM(F110:F113) -> 363466.4233 | G114: =SUM(G107:G108)+SUM(G110:G113) -> 0 | H114: =F114+G114 -> 363466.4233 | I114: =SUM(I107:I108)+SUM(I110:I113) -> 538821.8392 | J114: =SUM(J107:J108)+SUM(J110:J113) -> 516859.1344
B116: 7. | C116: Other Outgo
D117: Tuition to Other Schools | E117: 7110-7143 | F117: ='1st Detail'!L115 -> 0 | G117: ='1st Detail'!M115 -> 0 | H117: =F117+G117 -> 0
D118: Transfers of Pass-through Revenues to Other LEAs | E118: 7211-7213 | F118: ='1st Detail'!L116 -> 0 | G118: ='1st Detail'!M116 -> 0 | H118: 0
D119: Transfers of Apportionments to Other LEAs - Spec. Ed. | E119: 7221-7223SE | F119: ='1st Detail'!L117 -> 0 | G119: ='1st Detail'!M117 -> 0 | H119: 0
D120: Transfers of Apportionments to Other LEAs - All Other | E120: 7221-7223AO | F120: ='1st Detail'!L118 -> 0 | G120: ='1st Detail'!M118 -> 0 | H120: 0
D121: All Other Transfers | E121: 7280-7299 | F121: ='1st Detail'!L119 -> 0 | G121: ='1st Detail'!M119 -> 0 | H121: 0
D122: Debt Service:
D123: Interest | E123: 7438 | F123: ='1st Detail'!L121 -> 0 | G123: ='1st Detail'!M121 -> 0 | H123: 0
D124: Principal (for modified accrual basis only) | E124: 7439 | F124: ='1st Detail'!L122 -> 0 | G124: ='1st Detail'!M122 -> 0 | H124: 0
D125: Total, Other Outgo | F125: =SUM(F117:F121,F123:F124) -> 0 | G125: =SUM(G117:G121,G123:G124) -> 0 | H125: 0 | I125: =SUM(I117:I121,I123:I124) -> 0 | J125: =SUM(J117:J121,J123:J124) -> 0
B127: 8. | C127: TOTAL EXPENDITURES | F127: =SUM(F62,F70,F85,F93,F104,F114,F125) -> 5914239.793 | G127: =SUM(G62,G70,G85,G93,G104,G114,G125) -> 1196952.674 | H127: 7111192.467 | I127: =SUM(I62,I70,I85,I93,I104,I114,I125) -> 8396187.99 | J127: =SUM(J62,J70,J85,J93,J104,J114,J125) -> 9120215.603
A129: C. | B129: EXCESS (DEFICIENCY) OF REVENUES OVER EXPEND.
B130: BEFORE OTHER FINANCING SOURCES AND USES (A5-B8) | F130: =SUM(F54-F127) -> -195360.1963 | G130: =SUM(G54-G127) -> -147686.4423 | H130: =F130+G130 -> -343046.6386 | I130: =SUM(I54-I127) -> 612115.2133 | J130: =SUM(J54-J127) -> 565752.5621
F132: =F19 -> FY 2016/17 | I132: Totals for | J132: Totals for | N132: 2006/07 | O132: 2007/08 | P132: 2008/09
D133: Description | E133: Object Code | F133: Unrestricted | G133: Restricted | H133: Total | I133: =I20 -> 2017/18 | J133: =J20 -> 2018/19 | N133: 2007/08 | O133: 2008/09 | P133: 2009/10
A134: D. | B134: OTHER FINANCING SOURCES / USES
B135: 1. | C135: Other Sources | E135: 8930-8979 | F135: ='1st Detail'!L131 -> 0 | G135: ='1st Detail'!M131 -> 0 | H135: =F135+G135 -> 0
B136: 2. | C136: Less: Other Uses | E136: 7630-7699 | F136: ='1st Detail'!L132 -> 0 | G136: ='1st Detail'!M132 -> 0 | H136: =F136+G136 -> 0
B137: 3. | C137: Contributions Between Unrestricted and Restricted Accounts
C138: (must net to zero) | E138: 8980-8999 | F138: ='1st Detail'!L134 -> 0 | G138: ='1st Detail'!M134 -> 0 | H138: =F138+G138 -> 0
B140: 4. | C140: TOTAL OTHER FINANCING SOURCES / USES | F140: =SUM(+F135-F136+F138) -> 0 | G140: =SUM(+G135-G136+G138) -> 0 | H140: =F140+G140 -> 0 | I140: =SUM(+I135-I136+I138) -> 0 | J140: =SUM(+J135-J136+J138) -> 0
A142: E. | B142: NET INCREASE (DECREASE) IN FUND BALANCE (C + D4) | F142: =SUM(F130,F140) -> -195360.1963 | G142: =SUM(G130,G140) -> -147686.4423 | H142: =F142+G142 -> -343046.6386 | I142: =SUM(I130,I140) -> 612115.2133 | J142: =SUM(J130,J140) -> 565752.5621
A144: F. | B144: FUND BALANCE, RESERVES
B145: 1. | C145: Beginning Fund Balance
C146: a. | D146: As of July 1 | E146: 9791 | F146: ='1st Detail'!L142 -> 1092100.01 | G146: ='1st Detail'!M142 -> 7199001.37 | H146: =F146+G146 -> 8291101.38 | I146: =H149 -> 7955874.361 | J146: =I149 -> 8567989.575
C147: b. | D147: Adjustments to Beginning Balance | E147: 9793, 9795 | F147: ='1st Detail'!L143 -> 1363833.99 | G147: ='1st Detail'!M143 -> -1356014.37 | H147: =F147+G147 -> 7819.62
C148: c. | D148: Adjusted Beginning Balance | F148: =SUM(F146:F147) -> 2455934 | G148: =SUM(G146:G147) -> 5842987 | H148: =F148+G148 -> 8298921 | I148: =SUM(I146:I147) -> 7955874.361 | J148: =SUM(J146:J147) -> 8567989.575
B149: 2. | C149: Ending Fund Balance, June 30 (E + F.1.c.) | F149: =SUM(F142,F148) -> 2260573.804 | G149: =SUM(G142,G148) -> 5695300.558 | H149: =F149+G149 -> 7955874.361 | I149: =SUM(I142,I148) -> 8567989.575 | J149: =SUM(J142,J148) -> 9133742.137
C151: Components of Ending Fund Balance:
C152: a. | D152: Nonspendable
D153: Revolving Cash (equals object 9130) | E153: 9711 | F153: ='1st Detail'!L149 -> 0 | G153: ='1st Detail'!M149 -> 0 | H153: =F153+G153 -> 0
D154: Stores (equals object 9320) | E154: 9712 | F154: ='1st Detail'!L150 -> 0 | G154: ='1st Detail'!M150 -> 0 | H154: =F154+G154 -> 0
D155: Prepaid Expenditures (equals object 9330) | E155: 9713 | F155: ='1st Detail'!L151 -> 0 | G155: ='1st Detail'!M151 -> 0 | H155: =F155+G155 -> 0
D156: All Others | E156: 9719 | F156: ='1st Detail'!L152 -> 0 | G156: ='1st Detail'!M152 -> 0 | H156: =F156+G156 -> 0
C157: b. Restricted | E157: 9740 | F157: ='1st Detail'!L153 -> 0 | G157: ='1st Detail'!M153 -> 7051314.928 | H157: =F157+G157 -> 7051314.928
C158: c. | D158: Committed
D159: Stabilization Arrangements | E159: 9750 | F159: ='1st Detail'!L155 -> 0 | G159: ='1st Detail'!M155 -> 0 | H159: =F159+G159 -> 0
D160: Other Commitments | E160: 9760 | F160: ='1st Detail'!L155 -> 0 | G160: ='1st Detail'!M156 -> 0 | H160: =F160+G160 -> 0
C161: d | D161: Assigned
D162: Other Assignments | E162: 9780 | F162: ='1st Detail'!L158 -> 0 | G162: ='1st Detail'!M158 -> 0 | H162: =F162+G162 -> 0
C163: e. | D163: Unassigned/Unappropriated
D164: Reserve for Economic Uncertainties | E164: 9789 | F164: ='1st Detail'!L160 -> 0 | G164: ='1st Detail'!M160 -> 0 | H164: =F164+G164 -> 0
D165: Unassigned/Unappropriated Amount | E165: 9790 | F165: ='1st Detail'!L161 -> 903684.4349 | G165: ='1st Detail'!M161 -> 0 | H165: =F165+G165 -> 903684.4349 | I165: 8567114.576 | J165: 9132867.138

Sheet Sheet1 (hidden)
A1: Name | B1: EdTec Description | C1: Restricted for State Reporting Purposes?
A2: Name | B2: EdTec Description | C2: No
A3: - No Resource-Year - | B3: No Resource Code | C3: No
A4: 0000-0 | B4: No Resource Code | C4: No
A5: 0000-7 | B5: No resource; FY0607 | C5: No
A6: 0001-0 | B6: Gala {LCCS} | C6: No
A7: 3010-0 | B7: NCLB-Title I, Part A, Basic Grants Low Income and Neglected | C7: Yes
A8: 3011-0 | B8: NCLB: ARRA Title I, Part A, Basic Grants Low Income and Neglected [8299] | C8: Yes
A9: 3030-0 | B9: NCLB-Title I Part B, Reading First Program | C9: Yes
A10: 3171-0 | B10: NCLB: Title I Program Improvement & School Choice | C10: Yes
A11: 3200-0 | B11: ARRA: State Fiscal Stabilization Fund (Backfill) [8299] | C11: Yes
A12: 3205-0 | B12: ARRA: Education Jobs and Medicaid Assistance Act Funds | C12: Yes
A13: 3310-0 | B13: Special Ed: IDEA Basic Local Assistance Entitlement, Part B, Sec 611 (formerly PL 94-142) | C13: Yes
A14: 3313-0 | B14: Special Ed: ARRA IDEA Part B, Sec 611, Basic Local Assistance | C14: Yes
A15: 3710-0 | B15: NCLB: Title IV, Part A, Drug Free Schools | C15: Yes
A16: 4035-0 | B16: NCLB: Title II, Part A, Teacher Quality | C16: Yes
A17: 4036-0 | B17: NCLB: Title II, Part A, Principal Training | C17: Yes
A18: 4045-0 | B18: NCLB: Title II, Part D, Enhancing Education Through Technology, Formula Grants | C18: Yes
A19: 4048-0 | C19: Yes
A20: 4110-0 | B20: NCLB: Title V, Part A: Innovative Education Strategies | C20: Yes
A21: 4124-0 | B21: ASSETS {LCCS} | C21: Yes
A22: 4201-0 | B22: NCLB: Title III, Immigrant Education Program | C22: Yes
A23: 4203-0 | B23: NCLB: Title III, Limited English Proficiency (LEP) Student Program | C23: Yes
A24: 4610-0 | B24: PCSGP (startup, implementation, dissemination) | C24: Yes
A25: 5210-0 | B25: Head Start | C25: Yes
A26: 5310-0 | B26: Child Nutrition: School Programs (e.g. School Lunch, School Breakfast, Milk, Pregnant & Lactating Students | C26: Yes
A27: 5315-0 | B27: Child Nutrition: ARRA Equipment Assistance Grants | C27: Yes
A28: 5370-0 | B28: Child Nutrition: Fresh Fruit and Vegetable Program (D) | C28: Yes
A29: 5380-0 | B29: Child Nutrition: School Breakfast Startup (state/8520) | C29: Yes
A30: 5815-0 | B30: CSFIP (Charter School Facility Incentive Grant Program) [8299] | C30: Yes
A31: 5820-0 | B31: FLAP Grant | C31: Yes
A32: 6010-0 | B32: ASES related expenses | C32: Yes
A33: 6020-0 | B33: CSIS (BP Cohort, etc.) use with account 8590 | C33: No
A34: 6030-0 | B34: CSFP (Charter School Facilities Grant) [8545] | C34: No
A35: 6050-0 | B35: Prekindergarten and Family Literacy {RES} | C35: No
A36: 6258-0 | B36: PE Grant Revenue [8590] | C36: No
A37: 6267-0 | B37: National Board Certification Teacher Incentive Grant | C37: No
A38: 6275-0 | B38: Teacher Recruitment and Retention | C38: No
A39: 6285-0 | B39: Community Based Tutoring Program | C39: No
A40: 6286-0 | B40: English Language Acquisition Program, Teacher Training & Student Assistance | C40: Yes
A41: 6300-0 | B41: Lottery: Instructional Materials (restricted Prop 20) | C41: No
A42: 6340-0 | B42: Nell Soto - improving academic achievement through home visits and/or community meetings | C42: No
A43: 6386-0 | B43: California Parternership Academies (CPA): Green and Clean Academies (D) | C43: No
A44: 6500-0 | B44: Special Education | C44: Yes
A45: 6512-0 | B45: Special Education - State Mental Health | C45: Yes
A46: 6760-0 | B46: Arts and Music Block Grant [Object 8590] | C46: No
A47: 6761-0 | B47: Art, Music, and Physical Education Supplies and Equipment | C47: No
A48: 7026-0 | B48: Instructional School Gardens | C48: No
A49: 7055-0 | B49: Ca HS Exit Examination Intensive Instruction and Services [8590] | C49: No
A50: 7056-0 | B50: California High School Exit Exam Individualized Materials | C50: No
A51: 7080-0 | B51: Middle & HS Supplemental Counseling Program [8590] | C51: No
A52: 7091-0 | B52: Economic Impact Aid: Limited English Proficiency (LEP) | C52: No
A53: 7126-0 | B53: CA K-12 High School Network | C53: No
A54: 7258-0 | B54: High Priority Schools Grants Program | C54: No
A55: 7260-0 | B55: School Improvement Program (SIP) | C55: No
A56: 7276-0 | B56: Certificated Staff Mentoring Program (08-09) | C56: No
A57: 7280-0 | B57: Staff Development:Beginning Teacher Support/Assessment (BTSA) | C57: No
A58: 7392-0 | B58: Teacher Credentialing Block Grant | C58: No
A59: 7396-0 | B59: Discretionary Block Grant - School Site | C59: No
A60: 7397-0 | B60: Discretionary Block Grant - School District | C60: No
A61: 7398-0 | B61: Instructional Materials, Library Materials and Education Technology | C61: No
A62: 7710-0 | B62: State School Facilities Projects | C62: No
A63: 8001-0 | B63: Teacher Appreciation Funds {ECHS} | C63: No
A64: 8111-0 | B64: Allowance {ECHS} | C64: No
A65: 8220-0 | B65: Kaiser Grant {GVCS, Oasis} | C65: No
A66: 9001-7 | B66: Fund-a-Need Grant 2007 {SBS} | C66: No
A67: 9001-8 | B67: Fund-a-Need Grant 2008 {SBS} | C67: No
A68: 9002-7 | B68: CP Community Projects {SBS} | C68: No
A69: 9003-0 | B69: Gasser Grant - Profitt {SBS} | C69: No
A70: 9004-0 | B70: Gasser Grant - Nelson {SBS} | C70: No
A71: 9005-0 | B71: Gasser Grant â€“ Lorraine {SBS} | C71: No
A72: 9006-0 | B72: Kiwanis Club Grant {SBS only} | C72: No
A73: 9007-0 | B73: Waldorf Collaborative Fund of RSF Social Finance {SBS} | C73: No
A74: 9008-0 | B74: Napa Downtown Gran Prix/Cycle Circus {SBS} | C74: No
A75: 9009-0 | B75: Alex Graf {LCCS} | C75: No
A76: 9010-0 | B76: New Leaders, Inc {LCCS} | C76: No
A77: 9010-9 | B77: Gasser Grant 1 - FY08/09 {SBS} | C77: No
A78: 9011-9 | B78: Gasser Grant 2 - FY08/09 {SBS} | C78: No
A79: 9012-0 | B79: Donations - Individual {LCSS}{SBS} | C79: No
A80: 9013-0 | B80: Donations - Corporations {LCCS}{SBS} | C80: No
A81: 9014-0 | B81: Donations - Foundations {LCCS} | C81: No
A82: 9015-0 | B82: Donations - Gifts in Kind | C82: No
A83: 9103-0 | B83: CMS Foundation | C83: No
A84: 9104-0 | B84: Alameda County Public Health | C84: No
A85: 9106-0 | B85: Bayes | C85: No
A86: 9120-0 | B86: Comprehensive School Reform (related to High Priority Grants) {ECHS} | C86: No
A87: 9121-0 | B87: Greenworks Grant {ECHS} | C87: No
A88: 9122-0 | B88: Youth Policy Institute Grant {ECHS} | C88: No
A89: 9123-0 | B89: Lowe's Grant [ECHS} | C89: No
A90: 9124-0 | B90: Beach Rotary Grant {ECHS} | C90: No
A91: 9125-0 | B91: Library Grant {ECHS} | C91: No
A92: 9126-0 | B92: Fundraising - to track expenses or revenues | C92: No
A93: 9130-0 | B93: Bullis Foundation - Gifts | C93: No
A94: 9131-0 | B94: Boosters Club (Bullis, UPA, Cornerstone, OAHS) | C94: No
A95: 9135-0 | B95: Books {VPA}, ACLC {NEA},Cafeteria Fundraising (VASA), Scrip (SOAR), Graduation (OAHS), Parent Club (Bayshore), Graphic Design Course-Art (UPA), Hot lunch program (GVCS), RTTT (ECHS), Ingenium (H.Off), Prop H (ES), Chevron Grant (ECR), SPED (Excel) | C95: No
A96: 9136-0 | B96: Lunch Program (VPA), Drama (UPA), Fundraising - Sports (OAHS), Carnival (VASA) | C96: No
A97: 9137-0 | B97: Program 3 (VPA) (Sycamore) (VASA) (RGTC - Natl Gateway), UPA-Science FR | C97: No
A98: 9138-0 | B98: Program 4 (VPA) (VASA) (Sycamore), Band (UPA) | C98: No
A99: 9139-0 | B99: Program 5 (VPA) (SB) (VASA) (Sycarmore - Water Grant), Language Arts (UPA) | C99: No
A100: 9140-0 | B100: Program 6 (FKCS, VPA)(VASA){SBS}, Social Science (UPA), Scribes Grant(Sycamore) | C100: No
A101: 9141-0 | B101: Program 7 (FKCS, EP), Math (UPA) | C101: No
A102: 9150-0 | B102: Couric Grant | C102: No
A103: 9151-0 | B103: District - TRESD Inst Matl {SBS} | C103: No
A104: 9152-0 | B104: Edvision | C104: No
A105: 9153-0 | B105: Cycles for Change | C105: No
A106: 9154-0 | B106: After Care {GVCS} {SBS}{VASA}{CACS}{Walden} | C106: No
A107: 9156-0 | B107: Program Site Council {Disco} | C107: No
A108: 9176-0 | B108: Genentech | C108: No
A109: 9196-0 | B109: Irwin Foundation | C109: No
A110: 9220-0 | B110: Kaiser Foundation | C110: No
A111: 9221-0 | B111: Foundation-Grant 1 (Oasis, EP, VPA, NCTT, SBP-Restr Donation, ES-3CS grant, CSCE - Stuart)) | C111: No
A112: 9222-0 | B112: Foundation-Grant 2 (Oasis, EP, NCTT, ES) | C112: No
A113: 9223-0 | B113: Foundation-Grant 3 (Oasis, NCTT, ECS, LCCS) | C113: No | N113: =vloo -> 
A114: 9224-0 | B114: Foundation-Grant 4 (Oasis, NCTT) | C114: No
A115: 9225-0 | B115: Foundation-Grant 5 (Oasis, NCTT, Envision, LCCS) | C115: No
A116: 9226-0 | B116: Foundation-Grant 6 (Oasis, NCTT) | C116: No
A117: 9227-0 | B117: Foundation-Grant 7 (Oasis, NCTT) | C117: No
A118: 9228-0 | B118: Foundation-Grant 8 (Oasis) | C118: No
A119: 9229-0 | B119: Foundation-Grant 9 (Oasis) | C119: No
A120: 9230-0 | B120: Foundation-Grant 10 (Oasis, EP) | C120: No
A121: 9236-0 | B121: Moore Grant | C121: No
A122: 9255-0 | B122: Oakland Fund for the Arts | C122: No
A123: 9256-0 | B123: Oakland Fund for Children Youth | C123: No
A124: 9260-0 | B124: Other Foundation Contributions | C124: No
A125: 9280-0 | B125: Rogers Foundation | C125: No
A126: 9296-0 | B126: San Francisco Foundation | C126: No
A127: 9332-0 | B127: Walton Foundation 1 {SBS}, Excel, CAPS | C127: No
A128: 9333-0 | B128: Walton Grant 2 {SBS} | C128: No
A129: 9333-3 | B129: Walton Grant 2003 {SBS} | C129: No
A130: 9333-6 | B130: Walton Grant 2006 {SBS} | C130: No
A131: 9341-0 | B131: Outdoor Fund {Sunrise} | C131: No
A132: 9351-0 | B132: Stone Grant {SBS} | C132: No
A133: 9352-0 | B133: YAYI {SBS} | C133: No
A134: 9353-0 | B134: {LCCS} | C134: No
A135: 9354-0 | B135: Y&H Soda {OASIS} | C135: No
A136: 9355-0 | B136: Fundraising - Anonymous | C136: No
A137: 9360-0 | B137: ASB | C137: No
A138: 9361-0 | B138: Bonner Grant {VASA} | C138: No
A139: 9362-0 | B139: Cultural Art Grant {VASA} | C139: No
A140: 9363-0 | B140: Northwestern Mutual {VASA} | C140: No
A141: 9401-0 | B141: Hewlett COP | C141: No
A142: 9402-0 | B142: Hewlett General | C142: No
A143: 9403-0 | B143: DLSAS | C143: No
A144: 9501-0 | B144: Hawaii - Kamaile | C144: No
A145: 9502-0 | B145: Hawaii - Hoâ€›okÄkoâ€›o | C145: No
A146: APXX-0 | B146: Resource Code To Be Determined | C146: No
